Workbook

Sheet Readme
B1: THE TIRE AND RIM ASSOCIATION, INC.
B2: HIGH FLOTATION RADIAL LIGHT TRUCK TIRE PROFILE PROGRAM
B4: IMPORTANT The TRA High Flotation Radial Light Truck tire profile program was created to provide a convenient, electronic presentation of data resulting from applying formulae and guidelines for light truck tires shown in the TRA Engineering Design Information and the Year Book. All information provided in this program is advisory only and only tire sizes and load versions published in the TRA Year Book and Engineering Design Information are standardized by the Association. Any new tire sizes, load versions or other information must be approved be the approriate committees and published by TRA before they can be considered standardized. This program only applies to light truck high flotation radial tires.
B6: Because the program is still a work in progress, we would appreciate any feedback you can provide regarding errors, ommisions, problems or other suggestions to make it more usable and accurate. Please contact:
B8: The Tire and Rim Association
B9: 4000 Embassy Parkway, Suite 390
B10: Akron, Ohio 44333
B11: ph - 330-666-8121
B12: email - rudyc@us-tra.org
B14: INSTRUCTIONS:
B15: Enter data in the "TRA Data" worksheet as follows:
B16: Cell C6 = Tire nominal diameter
B17: Cell E6 = Tire nominal section width
B18: Cell G6 = Nominal rim diameter
B19: Cell J6 = Load Range
B20: Cell K31 = Intermediate pressure in kPa to calculate intermediate load
B21: Cell K32 = Intermediate pressure in psi to calculate intermediate load
B23: DATA WORKSHEETS
B25: DATA SHEET - provides basic tire load/pressure and dimension calculation and approved rim contours.
B27: TRA Window - provides window of acceptable dimensions within tire maximum and minimum limits.
B29: Profile - provides design new tire, maximum new tire and maximum grown tire envelope profile.
B31: PROGRAM REVISIONS
B32: The program will be revised after each Association meeting to add new approved tire sizes. The date will be changed. The version number will change only when there are significant revisions made to the program.
B34: PROGRAM CORRECTION, REVISON AND UPDATE DETAILS
B35: 01-01-2015 - Update to include reference to tires in the 2015 Year Book.
B37: 01-01-2016 - Version 2.3 - Update to include reference to tires in the 2016 Year Book. Additional section widths (16.5 to 18.5) and approved rim widths added.
B39: 01-27-2017 - Version 2.4 - Update to include reference to tires in the 2017 Year Book. Half-inch rim widths above 10-inches added. Additional section width (19.5) and approved rim widths added.
B41: 04-27-2017 - Version 2.5 - Correct formula in cell H22 (inflation pressure for load calculation)
B43: 01-01-2018 - Version 2.6 - Update to include reference to tires in the 2018 Year Book.
B45: 01-24-2019 - Version 2.7 - Update to include reference to tires in the 2019 Year Book and revision to approved rim width range to match current guidelines.
B47: 08-12-2019 - Incorporated LT-Metric guidelines for low aspect ratio - Measuring Rim and Approved Rim Width range
B49: 01-01-2020 - Version 2.8 - Update to include reference to tires in the 2020 Year Book.
B51: 01-01-2021 - Version 2.9 - Update to include reference to tires in the 2021 Year Book. Load Index cap of 121 for 17 rim diameter code removed. Radial design section width (cell J41) updated for calculation to include aspect ratio (cell AG10).
B53: 01-01-2022 - Version 2.10 - Update to include reference to tires in the 2022 Year Book.
B55: 01-27-2023 - Version 2.11 - Update to include reference to tires in the 2023 Year Book.
B57: 06-02-23 - Version 3.0: New "STATUS" page, including exceptions to load calculations / Updated "DATA SHEET" page to work with new "STATUS" page, match YearBook look & intermediate pressures load calculation. Corrected Section Width minimum calculation for TRA_Window to follow SW maximum calculation (only affecting SWmin for 10.50 nominal width tires)
B59: 01-05-24 - Version 3.1: Added LR input request in the desired size designation and associated messaging depending on the status of that LR; Added for TRA purpose only the capability to upload new sizes or higher LR automatically from the spreadsheet to the Access database; Updated to include reference to tires in the 2024 Year Book.
B61: 01-01-25 - Version 3.2: Added control of size designation inputs (drop down menu like PMET and LTMET rather than typing manually, to avoid any typo); Eliminated erroneous data for sizes out of calculation range; Improved management of error display with messages; Added missing LRB for 33x9.50R15 in status page; Updated the Profile sheet with a correction of the max profile (C Max. value) and clarified drawing with line differentiation and legend; Included reference to tires in the 2025 Year Book.
B63: 11-14-25 - Version 3.3: Corrected Design OD calculation in "TRA_Window" and "Calcs" to match the proper calculation in "DATA SHEET". No impact to standardized sizes data in Year Book or Database
B65: 01-01-2026 - Version 3.4 - Update to include reference to tires in the 2026 Year Book. For TRA purpose: added message in case upload to database fails to load the intended numbers of lines.
B67: 01-28-2026 - Version 3.5 - Update to increase load calculations up to 95psi / 650kPa (LR F) for Nominal Section Width <=11.5"

Sheet DATA SHEET
C2: This Version includes the Load Index cap of 128 which is effective January 1, 2009; contact TRA office for original calculations. Certain sizes with 17 rim diameter code designed from July 28, 1998 to October 23, 2020 were standardized with a Load Index cap of 121; contact TRA office for original calculations. Loads for the 33x9.50R15LT LR C, 33x12.50R22LT LR F, 35x13.50R24LT LR E, 37x14.50R24LT LR F, and 42x15.50R28LT LR E differ from the standard calculations; see current TRA Year Book for standardized loads.
C3: THE TIRE AND RIM ASSOCIATION, INC.
C4: LT_HIFLO_PROFILE PROGRAM
C6: 33 | D6: x | E6: 11.5 | F6: =IF(S14="RADIAL PLY","R","-") -> R | G6: 22 | H6: LT | I6: LR | J6: F | K6: ← | L6: TYPE IN SIZE DESIGNATION | W6: For TRA internal use only: | AA6: Load DB
C9: TRA DATA SHEET
C10: LIGHT TRUCK HIGH FLOTATION RADIAL PLY TIRES MOUNTED ON 5 DEGREE DROP CENTER RIMS
J12: TRA STATUS = | K12: =STATUS!C3 -> Not Standardized | O12: =IF(Incorrect_Profile,"Aspect ratio out of 30-70 range - Revise either tire OD, Section Width and / or Rim Diameter or contact TRA !",IF(Out_of_LI_Range,"Size out of LI range",IF(AND(OR(K12="TRA Standard",K12="Design Guide"),STATUS!B4="yes"),"",IF(AND(OR(K12="TRA Standard",K12="Design Guide"),STATUS!B4="no"),"Load Range must be confirmed by TRA","Tire Size and Load Range must be confirmed by TRA")))) -> Tire Size and Load Range must be confirmed by TRA
J13: APPROVED LOAD RANGE(S) = | K13: =STATUS!B3 -> N/A
J14: LOCATION = | K14: =STATUS!D3 -> N/A | O14: =IF(AND(AA26<>"N/A",COUNTIF(J19:AB20,"*n/a*")<>0),"Missing loads, LR and LIs at lower pressures are out of current scope"," ") -> Missing loads, LR and LIs at lower pressures are out of current scope
C16: TIRE SIZE DESIGNATION | I16: TIRE LOAD LIMITS AT VARIOUS COLD INFLATION PRESSURES
I17: kPa | J17: 170 | M17: 210 | N17: 250 | Q17: 280 | R17: 310 | S17: 350 | V17: 380 | W17: 410 | X17: 450 | AA17: 480 | AB17: 520 | AC17: 550 | AF17: 650
I18: psi | J18: 25 | M18: 30 | N18: 35 | Q18: 40 | R18: 45 | S18: 50 | V18: 55 | W18: 60 | X18: 65 | AA18: 70 | AB18: 75 | AC18: 80 | AF18: 95
C19: =C$6 -> 33 | D19: x | E19: =E6 -> 11.5 | F19: =IF(S14="RADIAL PLY","R","-") -> R | G19: =G6 -> 22 | H19: LT | I19: kg | J19: =IFERROR(IF(OR(Out_of_Scope,J20="n/a"),"n/a",IF(STATUS!F3<>0,STATUS!F3,IF($E$6<=11.5,ROUND(2*J20*0.4536,-1)/2,VLOOKUP(J20*0.4536,LI_Table,2)))),"n/a") -> 530 | K19: =K20 -> n/a | L19: =IF(E6<=11.5,"n/a",IF(J20="n/a","n/a",VLOOKUP(J20,Tables!$H$5:$I$99,2))) -> n/a | M19: =IFERROR(IF(OR(Out_of_Scope,M20="n/a"),"n/a",IF(STATUS!H3<>0,STATUS!H3,ROUND(2*M20*0.4536,-1)/2)),"n/a") -> 605 | N19: =IFERROR(IF(Out_of_Scope,"n/a",IF(STATUS!J3<>0,STATUS!J3,VLOOKUP(N20*0.4536,LI_Table,2))),"n/a") -> 670 | O19: =O20 -> (B) | P19: =IF(N20="n/a","n/a",VLOOKUP(N20,Tables!$H$5:$I$99,2)) -> 94 | Q19: =IFERROR(IF(OR(Out_of_Scope,Q20="n/a"),"n/a",IF(STATUS!L3<>0,STATUS!L3,ROUND(2*Q20*0.4536,-1)/2)),"n/a") -> 735 | R19: =IFERROR(IF(OR(Out_of_Scope,R20="n/a"),"n/a",IF(STATUS!N3<>0,STATUS!N3,ROUND(2*R20*0.4536,-1)/2)),"n/a") -> 795 | S19: =IFERROR(IF(Out_of_Scope,"n/a",IF(STATUS!P3<>0,STATUS!P3,VLOOKUP(S20*0.4536,LI_Table,2))),"n/a") -> 850 | T19: =T20 -> (C) | U19: =IF(S20="n/a","n/a",VLOOKUP(S20,Tables!$H$5:$I$99,2)) -> 102 | V19: =IFERROR(IF(OR(Out_of_Scope,V20="n/a"),"n/a",IF(STATUS!R3<>0,STATUS!R3,IF(STATUS!V3<>0,STATUS!V3,IF(STATUS!T3<>0,STATUS!T3,IF(STATUS!R3<>0,STATUS!R3,ROUND(2*V20*0.4536,-1)/2))))),"n/a") -> 905 | W19: =IFERROR(IF(OR(Out_of_Scope,W20="n/a"),"n/a",IF(STATUS!T3<>0,STATUS!T3,ROUND(2*W20*0.4536,-1)/2)),"n/a") -> 955 | X19: =IFERROR(IF(Out_of_Scope,"n/a",IF(STATUS!V3<>0,STATUS!V3,VLOOKUP(X20*0.4536,LI_Table,2))),"n/a") -> 1000 | Y19: =Y20 -> (D) | Z19: =IF(X20="n/a","n/a",VLOOKUP(X20,Tables!$H$5:$I$99,2)) -> 108 | AA19: =IFERROR(IF(OR(Out_of_Scope,AA20="n/a"),"n/a",IF(STATUS!X3<>0,STATUS!X3,ROUND(2*AA20*0.4536,-1)/2)),"n/a") -> 1055 | AB19: =IFERROR(IF(OR(Out_of_Scope,AB20="n/a"),"n/a",IF(STATUS!Z3<>0,STATUS!Z3,ROUND(2*AB20*0.4536,-1)/2)),"n/a") -> 1100 | AC19: =IF(Out_of_Scope,"n/a",IF(STATUS!AB3<>0,STATUS!AB3,VLOOKUP(AC20*0.4536,LI_Table,2))) -> 1150 | AD19: =AD20 -> (E) | AE19: =IF(AC20="n/a","n/a",VLOOKUP(AC20,Tables!$H$5:$I$99,2)) -> 113 | AF19: =IF(OR(Out_of_Scope,$E$6>11.5),"n/a",IF(STATUS!AD3<>0,STATUS!AD3,VLOOKUP(AF20*0.4536,LI_Table,2))) -> 1285 | AG19: =AG20 -> (F) | AH19: =IF(AF20="n/a","n/a",VLOOKUP(AF20,Tables!$H$5:$I$99,2)) -> 117
F20: =IF(Q31="RADIAL PLY","R","-") -> - | I20: lb | J20: =IFERROR(IF(Out_of_Scope,"n/a",IF(STATUS!G3<>0,STATUS!G3,IF(E6<=11.5,(ROUND(2*(1.57*0.425*(20^0.585)*(S.80^1.28)*(Dr+Sd)*(H/S.80)),-1))/2,IF(VLOOKUP(1.57*0.425*(20^0.585)*(S.80^1.28)*(Dr+Sd)*(H/S.80)*0.4536,LI_Table,5)>3970,3970,VLOOKUP(1.57*0.425*(20^0.585)*(S.80^1.28)*(Dr+Sd)*(H/S.80)*0.4536,LI_Table,5))))),"n/a") -> 1165 | K20: =IF($E$6<=11.5,"n/a","(B)") -> n/a | M20: =IFERROR(IF(Out_of_Scope,"n/a",IF(STATUS!I3<>0,STATUS!I3,IF(VLOOKUP(1.57*0.425*(30^0.585)*(S.80^1.28)*(Dr+Sd)*(H/S.80)*0.4536,LI_Table,5)>3970,ROUND(2*(J20+(((N20-J20)/2))),-1)/2,(ROUND(2*(1.57*0.425*(25^0.585)*(S.80^1.28)*(Dr+Sd)*(H/S.80)),-1))/2))),"n/a") -> 1330 | N20: =IFERROR(IF(Out_of_Scope,"n/a",IF(STATUS!K3<>0,STATUS!K3,IF(VLOOKUP(1.57*0.425*(30^0.585)*(S.80^1.28)*(Dr+Sd)*(H/S.80)*0.4536,LI_Table,5)>3970,3970,VLOOKUP(1.57*0.425*(30^0.585)*(S.80^1.28)*(Dr+Sd)*(H/S.80)*0.4536,LI_Table,5)))),"n/a") -> 1475 | O20: =IF(N20="n/a","n/a",IF($E$6<=11.5,"(B)","(C)")) -> (B) | Q20: =IFERROR(IF(Out_of_Scope,"n/a",IF(STATUS!M3<>0,STATUS!M3,IF(VLOOKUP(1.57*0.425*(45^0.585)*(S.80^1.28)*(Dr+Sd)*(H/S.80)*0.4536,LI_Table,5)>3970,ROUND(2*(N20+(((S20-N20)/3))),-1)/2,(ROUND(2*(1.57*0.425*(35^0.585)*(S.80^1.28)*(Dr+Sd)*(H/S.80)),-1))/2))),"n/a") -> 1620 | R20: =IFERROR(IF(Out_of_Scope,"n/a",IF(STATUS!O3<>0,STATUS!O3,IF(VLOOKUP(1.57*0.425*(45^0.585)*(S.80^1.28)*(Dr+Sd)*(H/S.80)*0.4536,LI_Table,5)>3970,ROUND(2*(N20+(2*((S20-N20)/3))),-1)/2,(ROUND(2*(1.57*0.425*(40^0.585)*(S.80^1.28)*(Dr+Sd)*(H/S.80)),-1))/2))),"n/a") -> 1750 | S20: =IFERROR(IF(Out_of_Scope,"n/a",IF(STATUS!Q3<>0,STATUS!Q3,IF(VLOOKUP(1.57*0.425*(45^0.585)*(S.80^1.28)*(Dr+Sd)*(H/S.80)*0.4536,LI_Table,5)>3970,3970,VLOOKUP(1.57*0.425*(45^0.585)*(S.80^1.28)*(Dr+Sd)*(H/S.80)*0.4536,LI_Table,5)))),"n/a") -> 1875 | T20: =IF(S20="n/a","n/a",IF($E$6<=11.5,"(C)","(D)")) -> (C) | V20: =IFERROR(IF(Out_of_Scope,"n/a",IF(STATUS!S3<>0,STATUS!S3,IF(VLOOKUP(1.57*0.425*(60^0.585)*(S.80^1.28)*(Dr+Sd)*(H/S.80)*0.4536,LI_Table,5)>3970,ROUND(2*(S20+(((X20-S20)/3))),-1)/2,(ROUND(2*(1.57*0.425*(50^0.585)*(S.80^1.28)*(Dr+Sd)*(H/S.80)),-1))/2))),"n/a") -> 1995 | W20: =IFERROR(IF(Out_of_Scope,"n/a",IF(STATUS!U3<>0,STATUS!U3,IF(VLOOKUP(1.57*0.425*(60^0.585)*(S.80^1.28)*(Dr+Sd)*(H/S.80)*0.4536,LI_Table,5)>3970,ROUND(2*(S20+(2*((X20-S20)/3))),-1)/2,(ROUND(2*(1.57*0.425*(55^0.585)*(S.80^1.28)*(Dr+Sd)*(H/S.80)),-1))/2))),"n/a") -> 2110 | X20: =IFERROR(IF(Out_of_Scope,"n/a",IF(STATUS!W3<>0,STATUS!W3,IF(VLOOKUP(1.57*0.425*(60^0.585)*(S.80^1.28)*(Dr+Sd)*(H/S.80)*0.4536,LI_Table,5)>3970,3970,VLOOKUP(1.57*0.425*(60^0.585)*(S.80^1.28)*(Dr+Sd)*(H/S.80)*0.4536,LI_Table,5)))),"n/a") -> 2205 | Y20: =IF(X20="n/a","n/a",IF($E$6<=11.5,"(D)","(E)")) -> (D) | AA20: =IFERROR(IF(Out_of_Scope,"n/a",IF(STATUS!Y3<>0,STATUS!Y3,IF(VLOOKUP(1.57*0.425*(75^0.585)*(S.80^1.28)*(Dr+Sd)*(H/S.80)*0.4536,LI_Table,5)>3970,ROUND(2*(X20+(((AC20-X20)/3))),-1)/2,(ROUND(2*(1.57*0.425*(65^0.585)*(S.80^1.28)*(Dr+Sd)*(H/S.80)),-1))/2))),"n/a") -> 2325 | AB20: =IFERROR(IF(Out_of_Scope,"n/a",IF(STATUS!AA3<>0,STATUS!AA3,IF(VLOOKUP(1.57*0.425*(75^0.585)*(S.80^1.28)*(Dr+Sd)*(H/S.80)*0.4536,LI_Table,5)>3970,ROUND(2*(X20+(2*((AC20-X20)/3))),-1)/2,(ROUND(2*(1.57*0.425*(70^0.585)*(S.80^1.28)*(Dr+Sd)*(H/S.80)),-1))/2))),"n/a") -> 2430 | AC20: =IF(Out_of_Scope,"n/a",IF(STATUS!AC3<>0,STATUS!AC3,IF(VLOOKUP(1.57*0.425*(75^0.585)*(S.80^1.28)*(Dr+Sd)*(H/S.80)*0.4536,LI_Table,5)>3970,3970,VLOOKUP(1.57*0.425*(75^0.585)*(S.80^1.28)*(Dr+Sd)*(H/S.80)*0.4536,LI_Table,5)))) -> 2535 | AD20: =IF(AC20="n/a","n/a",IF($E$6<=11.5,"(E)","(F)")) -> (E) | AF20: =IF(OR(Out_of_Scope,$E$6>11.5),"n/a",IF(STATUS!AE3<>0,STATUS!AE3,IF(VLOOKUP(1.57*0.425*(90^0.585)*(S.80^1.28)*(Dr+Sd)*(H/S.80)*0.4536,LI_Table,5)>3970,3970,VLOOKUP(1.57*0.425*(90^0.585)*(S.80^1.28)*(Dr+Sd)*(H/S.80)*0.4536,LI_Table,5)))) -> 2835 | AG20: =IF(AF20="n/a","n/a",IF($E$6<=11.5,"(F)","---")) -> (F)
C22: Millimeters / Inches | I22: GENERAL DATA
C23: TIRE SIZE DESIGNATION | I23: MEASURING | K23: DESIGN NEW TIRE | R23: MAXIMUM GROWN TIRE | Y23: *MINIMUM SIZE FACTOR | AA23: APPROVED RIM CONTOURS
I24: RIM | K24: SECTION | M24: OVERALL DIAMETER | R24: OVERALL | T24: OVERALL DIAMETER
I25: WIDTH | K25: WIDTH | M25: HIGHWAY | O25: TRACTION | R25: WIDTH | T25: HIGHWAY | W25: TRACTION
C26: =C6 -> 33 | D26: x | E26: =E6 -> 11.5 | F26: =IF(S14="RADIAL PLY","R","-") -> R | G26: =G6 -> 22 | H26: LT | I26: =IF(AR>0.45,VLOOKUP(E6,Tables!$AG$6:$AI$18,2),IF(AR>0.4,VLOOKUP(E6,Tables!$AG$23:$AI$35,2),VLOOKUP(E6,Tables!$AG$39:$AI$51,2))) -> 9 | K26: =ROUND(K27*25.4,0) -> 290 | M26: =ROUND(M27*25.4,0) -> 826 | O26: =ROUND(O27*25.4,0) -> 832 | R26: =ROUND(R27*25.4,0) -> 313 | T26: =ROUND(T27*25.4,0) -> 837 | W26: =ROUND(W27*25.4,0) -> 843 | Y26: =ROUND(Y27*25.4,0) -> 1102 | AA26: =IF(AR>=0.7,VLOOKUP($E$6,Tables!$AK$6:$AL$18,2),IF(AR>0.45,VLOOKUP($E$6,Tables!$AM$6:$AN$18,2),IF(AR>0.4,VLOOKUP($E$6,Tables!$AO$6:$AP$18,2),IF(AR>0.3,VLOOKUP($E$6,Tables!$AQ$6:$AR$18,2),VLOOKUP($E$6,Tables!$AS$6:$AT$18,2))))) -> 8J, 8½J, 9J, 9½J, 10J, 10½J
K27: =IF(AR<=0.4,VLOOKUP(E6,Tables!$AG$39:$AI$51,3),IF(AR<=0.45,VLOOKUP(E6,Tables!$AG$23:$AI$32,3),VLOOKUP(E6,Tables!$AG$6:$AI$18,3))) -> 11.42 | M27: =Do -> 32.52 | O27: =M27+0.24 -> 32.76 | R27: =ROUND(K27*1.08,2) -> 12.33 | T27: =ROUND((2*(H*1.04))+G6,2) -> 32.94 | W27: =ROUND((2*((H+0.12)*1.04))+G6,2) -> 33.19 | Y27: =ROUND((((2.02*H)+K27)*0.97)+G6,2) -> 43.38
C28: * Minimum Size Factor dimensions are based on the Highway Tread and Measuring Rim Width
C30: CALCULATION OF LOAD LIMITS AT INFLATION PRESSURES BETWEEN STANDARDIZED INCREMENTS
C31: TYPE IN DESIRED INTERMEDIATE PRESSURE(S) | J31: → | M31: kPa | N31: → | O31: =IF(K31="","",IF(AND(E6>11.5,K31>550),"n/a",MROUND(MROUND(IF(Tables!Q85<=80,HLOOKUP(FLOOR(Tables!Q85,5),J18:AH20,3,FALSE)+(HLOOKUP(CEILING(Tables!Q85,5),J18:AH20,3,FALSE)-HLOOKUP(FLOOR(Tables!Q85,5),J18:AH20,3,FALSE))/5*(Tables!Q85-FLOOR(Tables!Q85,5)),AC20+((AF20-AC20)/15*(Tables!Q85-80))),5)*0.4536,5))) ->  | Q31: kg
M32: psi | N32: → | O32: =IF(K32="","",IF(AND(E6>11.5,K32>80),"n/a",MROUND(IF(K32<=80,HLOOKUP(FLOOR(K32,5),J18:AH20,3,FALSE)+(HLOOKUP(CEILING(K32,5),J18:AH20,3,FALSE)-HLOOKUP(FLOOR(K32,5),J18:AH20,3,FALSE))/5*(K32-FLOOR(K32,5)),AC20+((AF20-AC20)/15*(K32-80))),5))) ->  | Q32: lb

Sheet TRA_Window
B4: TRA | F4: Tread Depth Options: | G4: HWY / TRAC. Tread
C6: Rim Width Options: | D6: Meas. | F6: Approved Rim Contours: | G6: ='DATA SHEET'!AA26 -> 8J, 8½J, 9J, 9½J, 10J, 10½J
C29: Optional Entries: | D29: SW | E29: OD | F29: Label
C30: Tire 1 | H30: Value out of range! Reselect. | K30: =IF(OR(D30=0,E30=0),"YES",IF(OR(D30<Window_Calcs!$C$57,D30>Window_Calcs!$C$58,E30<Window_Calcs!$D$57,E30>Window_Calcs!$E$58),"NO","YES")) -> YES
C31: Tire 2 | H31: Value out of range! Reselect. | K31: =IF(OR(D31=0,E31=0),"YES",IF(OR(D31<Window_Calcs!$C$57,D31>Window_Calcs!$C$58,E31<Window_Calcs!$D$57,E31>Window_Calcs!$E$58),"NO","YES")) -> YES
C32: Tire 3 | H32: Value out of range! Reselect. | K32: =IF(OR(D32=0,E32=0),"YES",IF(OR(D32<Window_Calcs!$C$57,D32>Window_Calcs!$C$58,E32<Window_Calcs!$D$57,E32>Window_Calcs!$E$58),"NO","YES")) -> YES
C33: Tire 4 | H33: Value out of range! Reselect. | K33: =IF(OR(D33=0,E33=0),"YES",IF(OR(D33<Window_Calcs!$C$57,D33>Window_Calcs!$C$58,E33<Window_Calcs!$D$57,E33>Window_Calcs!$E$58),"NO","YES")) -> YES

Sheet Window_Calcs (hidden)
A1: TRA
B2: ="TRA Window - "&Dimen&" ("&Rim&")"&IF(Flag1=TRUE," - HWY/Traction Tread - Radial Ply"," - DEEP Traction Tread - Radial Ply") -> TRA Window - 33x11.50R22 LT (22x9J) - HWY/Traction Tread - Radial Ply
B5: Design
C6: SW | D6: OD
B8: @ Min1 SW | C8: =MIN_SW1 -> 276 | D8: =MIN_OD1 -> 826
B9: @ Min2 SW | C9: =MIN_SW2 -> 283 | D9: =MIN_OD2 -> 819
B10: @ Max SW | C10: =ROUND('DATA SHEET'!K26*VLOOKUP("TRA Max",Profile_Tbl,2)+(New_Rim_Width-M_Rim)*10,0) -> 310 | D10: =MIN_OD2 -> 819
B11: @ Max SW | C11: =C10 -> 310 | D11: =ROUND(2*IF(Flag1=TRUE,ROUND(Calcs!I7*25.4*1.03,0),ROUND(Calcs!I7*25.4*1.03,0)+3)+Dr_mm,0) -> 835
B12: @ Max OD | C12: =C10 -> 310 | D12: =D11 -> 835
B13: @ Max OD | C13: =MIN_SW1 -> 276 | D13: =D11 -> 835
B14: @ Min1 SW | C14: =MIN_SW1 -> 276 | D14: =MIN_OD1 -> 826
B18: Max
B20: @ Min2 SW | C20: =C10 -> 310 | E20: =MIN_OD2 -> 819
B21: @ Max SW | C21: =MAX_SW -> 313 | E21: =MIN_OD2 -> 819
B22: @ Max SW | C22: =MAX_SW -> 313 | E22: =MAX_OD -> 837
B23: @ Max OD | C23: =MAX_SW -> 313 | E23: =MAX_OD -> 837
B24: @ Max OD | C24: =MIN_SW1 -> 276 | E24: =MAX_OD -> 837
B25: @ Min1 SW | C25: =MIN_SW1 -> 276 | E25: =D11 -> 835
B28: Design Points
B30: TRA Min SW | C30: =MIN_SW1 -> 276 | E30: =F30 -> 826 | F30: =MIN_OD1 -> 826
B33: TRA Min OD | C33: =MIN_SW2 -> 283 | E33: =F33 -> 819 | F33: =MIN_OD2 -> 819
B39: TRA Design | C39: ='DATA SHEET'!K26+(New_Rim_Width-M_Rim)*10 -> 290 | E39: =F39 -> 826 | F39: =IF(TRA_Window!G4="HWY / TRAC. Tread",'DATA SHEET'!M26,'DATA SHEET'!O26) -> 826
B45: TRA Max | C45: =C11 -> 310 | E45: =F45 -> 835 | F45: =D11 -> 835
B48: =IF(OR(TRA_Window!D30<C$57,TRA_Window!D30=0,TRA_Window!D30>C$58,TRA_Window!E30<D$57,TRA_Window!E30=0,TRA_Window!E30>E$58),"",IF(TRA_Window!F30="","Tire 1",TRA_Window!F30)) ->  | C48: =IF(OR(TRA_Window!D30<C$57,TRA_Window!D30=0,TRA_Window!D30>C$58,TRA_Window!E30<D$57,TRA_Window!E30=0,TRA_Window!E30>E$58),C$45,TRA_Window!D30) -> 310 | F48: =IF(OR(TRA_Window!D30<C$57,TRA_Window!D30=0,TRA_Window!D30>C$58,TRA_Window!E30<D$57,TRA_Window!E30=0,TRA_Window!E30>E$58),F$45,TRA_Window!E30) -> 835
B50: =IF(OR(TRA_Window!D31<C$57,TRA_Window!D31=0,TRA_Window!D31>C$58,TRA_Window!E31<D$57,TRA_Window!E31=0,TRA_Window!E31>E$58),"",IF(TRA_Window!F31="","Tire 1",TRA_Window!F31)) ->  | C50: =IF(OR(TRA_Window!D31<C$57,TRA_Window!D31=0,TRA_Window!D31>C$58,TRA_Window!E31<D$57,TRA_Window!E31=0,TRA_Window!E31>E$58),C$45,TRA_Window!D31) -> 310 | F50: =IF(OR(TRA_Window!D31<C$57,TRA_Window!D31=0,TRA_Window!D31>C$58,TRA_Window!E31<D$57,TRA_Window!E31=0,TRA_Window!E31>E$58),F$45,TRA_Window!E31) -> 835
B52: =IF(OR(TRA_Window!D32<C$57,TRA_Window!D32=0,TRA_Window!D32>C$58,TRA_Window!E32<D$57,TRA_Window!E32=0,TRA_Window!E32>E$58),"",IF(TRA_Window!F32="","Tire 1",TRA_Window!F32)) ->  | C52: =IF(OR(TRA_Window!D32<C$57,TRA_Window!D32=0,TRA_Window!D32>C$58,TRA_Window!E32<D$57,TRA_Window!E32=0,TRA_Window!E32>E$58),C$45,TRA_Window!D32) -> 310 | F52: =IF(OR(TRA_Window!D32<C$57,TRA_Window!D32=0,TRA_Window!D32>C$58,TRA_Window!E32<D$57,TRA_Window!E32=0,TRA_Window!E32>E$58),F$45,TRA_Window!E32) -> 835
B54: =IF(OR(TRA_Window!D33<C$57,TRA_Window!D33=0,TRA_Window!D33>C$58,TRA_Window!E33<D$57,TRA_Window!E33=0,TRA_Window!E33>E$58),"",IF(TRA_Window!F33="","Tire 1",TRA_Window!F33)) ->  | C54: =IF(OR(TRA_Window!D33<C$57,TRA_Window!D33=0,TRA_Window!D33>C$58,TRA_Window!E33<D$57,TRA_Window!E33=0,TRA_Window!E33>E$58),C$45,TRA_Window!D33) -> 310 | F54: =IF(OR(TRA_Window!D33<C$57,TRA_Window!D33=0,TRA_Window!D33>C$58,TRA_Window!E33<D$57,TRA_Window!E33=0,TRA_Window!E33>E$58),F$45,TRA_Window!E33) -> 835
C56: =MIN(C8:C54)-6 -> 270 | I56: Range Finder
B57: Min | C57: =MIN(C8:C14)-8 -> 268 | D57: =MIN(D8:D14)-4 -> 815
B58: Max | C58: =MAX(C8:C14)+8 -> 318 | E58: =MAX(E19:E25)+4 -> 841

Sheet Profile
J1: =Prof_Type -> TRA Design
B2: TRA | C2: Tire Profile Sizing Options: | D2: TRA Design | F2: Tread Depth Options: | G2: HWY / TRAC. Tread
C6: Rim Width Options: | D6: Meas. | E6: Approved Rim Contours: | G6: ='DATA SHEET'!AA26 -> 8J, 8½J, 9J, 9½J, 10J, 10½J
I7: Enter Custom Values
I8: 300 | J8: SW (on Meas. Rim)
I9: 925 | J9: OD
I10: 30 | J10: Shoulder Radius
I11: 1300 | J11: Tread Arc Rad (R)
I12: 250 | J12: Tread Arc Width (C)
C33: Profile Construction Information:
D35: ="Tire - "&Prof_Type -> Tire - TRA Design | E35: Maximum Envelope Dimensions
D37: New
C38: RIM WIDTH (IN) | D38: =Profile_Calcs!C35 -> 9 | E38: =D38 -> 9 | F38: RIM WIDTH (IN)
C39: OVERALL DIAMETER (OD) | D39: =Profile_Calcs!C36 -> 826 | E39: =MAX_OD -> 837 | F39: Maximum Overall Diameter
C40: SECTION HEIGHT | D40: =Profile_Calcs!C37 -> 133.604 | E40: =MAX_SH -> 139 | F40: Maximum Section Height
C41: TREAD ARC WIDTH (C) | D41: =Profile_Calcs!C10 -> 238 | E41: =MAX_Envelope_RTW -> 307 | F41: TREAD WIDTH (Cmax)
C42: TREAD ARC LENGTH | D42: =Profile_Calcs!C38 -> 238.148124
C43: TREAD ARC RADIUS (R) | D43: =Profile_Calcs!C39 -> 1949 | E43: =MAX_Envelope_TR -> 2629 | F43: TREAD RADIUS (R)
C44: SHOULDER RADIUS (SR) | D44: =Profile_Calcs!C40 -> 20
E45: =FIXED(0.3*MAX_SH,1) -> 41.7 | F45: 30% Max SH (A)
E46: =FIXED(0.7*MAX_SH,1) -> 97.3 | F46: 70% Max SH (B)
C47: D (Equator Height from Rim) | D47: =Profile_Calcs!C41 -> 75.552
C48: E (Upper Sidewall Arc Offset) | D48: =Profile_Calcs!C42 -> 78.79316985
C49: F (Upper Sidewall Arc Radius) | D49: =Profile_Calcs!C43 -> 66.20683015
C50: G (Lower Sidewall Arc Offset) | D50: =IF(Profile_Calcs!C46<=0,"N/A",Profile_Calcs!C45) -> 69.31248132
C51: H (Lower Sidewall Arc Radius) | D51: =IF(Profile_Calcs!C46<=0,"Straight Line",Profile_Calcs!C46) -> 75.68751868
C52: SECTION WIDTH (SW) | D52: =Profile_Calcs!C44 -> 290 | E52: =MAX_SW -> 313 | F52: Maximum Overall Width

Sheet Profile_Calcs (hidden)
A1: TRA
B2: ENVELOPE CALCULATIONS | I2: Real X | J2: Tire profile | K2: Rim Profile | L2: Max profile | M2: Table Data 1 | N2: Table Data 2 | O2: Table Data 3 | P2: Table Data 4 | Q2: No arrow lines | R2: Double arrow lines | S2: Single arrow lines | T2: Label lines | U2: Real Y
H3: TIRE PROFILE: TIRE CROWN
C4: New | H4: Right side
B5: TIRE SIZE | C5: =Dimen -> 33x11.50R22 LT | H5: =ACOS($I$5/(Tread_Rad)) -> 1.514260252 | I5: =P1_X -> 110.1301192 | J5: =U5+Center -> 235.9860082 | U5: =P1_Y -> 409.8860082
B6: RIM FLANGE TYPE | C6: J | D6: <--- Fixed | H6: =(H$15-H$5)/10+H5 -> 1.519913859 | I6: =COS(H6)*Tread_Rad -> 99.12714209 | J6: 236.577539 | U6: =SIN(H6)*Tread_Rad+OD/2-Tread_Rad -> 410.477539
H7: 1.525567467 | I7: =COS(H7)*Tread_Rad -> 88.12099653 | J7: 237.1068541 | U7: 411.0068541
B8: RIM WIDTH (IN) | C8: =IF(O_Rim=0,M_Rim,O_Rim) -> 9 | H8: 1.531221074 | I8: 77.11203435 | J8: 237.5739367 | U8: 411.4739367
H9: 1.536874682 | I9: 66.10060741 | J9: 237.9787718 | U9: 411.8787718
B10: RTW | C10: =IF(Prof_Type="Custom",Cust_C,ROUND(INDEX(RTW_Tbl_X,MATCH(A&" - "&Prof_Type,RTW_Tbl_AR,0))*'DATA SHEET'!K26,0)) -> 238 | H10: 1.542528289 | I10: 55.08706769 | J10: 238.3213465 | U10: 412.2213465
B11: SECTION WIDTH | C11: =DSW -> 290 | H11: 1.548181897 | I11: 44.07176721 | J11: 238.6016498 | U11: 412.5016498
B12: SECTION HEIGHT | C12: =SH -> 133.604 | H12: 1.553835504 | I12: 33.05505806 | J12: 238.8196728 | U12: 412.7196728
B13: OVERALL DIAM. (mm) | C13: =OD -> 826 | H13: 1.559489112 | I13: 22.03729236 | J13: 238.9754085 | U13: 412.8754085
B14: TREAD RADIUS (mm) | C14: =ROUND(INDEX(RTW_Tbl_Trd_Rad__Y,MATCH(A&" - "&Prof_Type,RTW_Tbl_AR,0))*DSW_M,0) -> 1949 | H14: 1.565142719 | I14: 11.01882228 | J14: 239.0688519 | U14: 412.9688519
B15: SHOULDER RADIUS (mm) | C15: =VLOOKUP(Prof_Type,Profile_Tbl,4) -> 20 | H15: =PI()/2 -> 1.570796327 | I15: 0 | J15: 239.1 | U15: 413
B16: EQUATOR DIAM. AVG | C16: =Dr_mm+SH+F_Height -> 709.904 | H16: Left side
I17: =-I5 -> -110.1301192 | J17: =J5 -> 235.9860082
B18: SHCX (Shldr Radius Center) | C18: =(RTW-SHDR_RAD)/2 -> 109 | I18: -99.12714209 | J18: 236.577539
B19: SHCY(Shdr Radius Center) | C19: =SQRT((Tread_Rad-SHDR_RAD)^2-SHCX^2)+(OD/2-Tread_Rad) -> 389.9179629 | I19: -88.12099653 | J19: 237.1068541
I20: -77.11203435 | J20: 237.5739367
B21: P1 X (Tread/Shldr intersection) | C21: =SHCX*(Tread_Rad/(Tread_Rad-SHDR_RAD)) -> 110.1301192 | I21: -66.10060741 | J21: 237.9787718
B22: P1 Y (Tread/Shldr intersection) | C22: =OD/2-Tread_Rad+SQRT(Tread_Rad^2-P1_X^2) -> 409.8860082 | I22: -55.08706769 | J22: 238.3213465
I23: -44.07176721 | J23: 238.6016498
B24: P2 X (Shldr/Sidewall intersection) | C24: =(SHCX-C$42)*(C$43/(C$43-SHDR_RAD))+C$42 -> 122.0746169 | I24: -33.05505806 | J24: 238.8196728
B25: P2 Y (Shldr/Sidewall intersection) | C25: =(SHCY-EQD/2)*C$43/(C$43-SHDR_RAD)+EQD/2 -> 405.052506 | I25: -22.03729236 | J25: 238.9754085
B26: 1/2 SECT. WIDTH | C26: =DSW/2 -> 145 | I26: -11.01882228 | J26: 239.0688519
I27: 0 | J27: 239.1
B28: Flange Height | C28: =IF(R_Flange=VLOOKUP(R_Flange,Rim_Tbl,1),VLOOKUP(R_Flange,Rim_Tbl,4),"ERROR") -> 17.5
B29: Flange Top Radius | C29: =IF(R_Flange=VLOOKUP(R_Flange,Rim_Tbl,1),VLOOKUP(R_Flange,Rim_Tbl,5),"ERROR") -> 9.5 | H29: TIRE PROFILE: SHOULDER ARC
B30: Flange Bottom Radius | C30: =IF(R_Flange=VLOOKUP(R_Flange,Rim_Tbl,1),VLOOKUP(R_Flange,Rim_Tbl,6),"ERROR") -> 6.5 | H30: Right side
B31: Flange Width | C31: =IF(R_Flange=VLOOKUP(R_Flange,Rim_Tbl,1),VLOOKUP(R_Flange,Rim_Tbl,7),"ERROR") -> 15 | H31: =ACOS(($I$31-SHCX)/SHDR_RAD) -> 1.514260252 | I31: =P1_X -> 110.1301192 | J31: =U31+Center -> 235.9860082 | U31: =P1_Y -> 409.8860082
H32: =H31-(H$31-H$36)/5 -> 1.383066619 | I32: =IF(SHDR_RAD=0,P1_X,COS(H32)*SHDR_RAD+SHCX) -> 112.7325795 | J32: 235.6665723 | U32: =IF(SHDR_RAD=0,P1_Y,SIN(H32)*SHDR_RAD+SHCY) -> 409.5665723
A33: OUTPUTS: | H33: =H32-(H$31-H$36)/5 -> 1.251872986 | I33: =IF(SHDR_RAD=0,P1_X,COS(H33)*SHDR_RAD+SHCX) -> 115.2708875 | J33: 235.0094339 | U33: =IF(SHDR_RAD=0,P1_Y,SIN(H33)*SHDR_RAD+SHCY) -> 408.9094339
H34: =H33-(H$31-H$36)/5 -> 1.120679353 | I34: =IF(SHDR_RAD=0,P1_X,COS(H34)*SHDR_RAD+SHCX) -> 117.7014172 | J34: 234.0258873 | U34: =IF(SHDR_RAD=0,P1_Y,SIN(H34)*SHDR_RAD+SHCY) -> 407.9258873
B35: RIM WIDTH (IN) | C35: =New_Rim_Width -> 9 | H35: =H34-(H$31-H$36)/5 -> 0.9894857194 | I35: =IF(SHDR_RAD=0,P1_X,COS(H35)*SHDR_RAD+SHCX) -> 119.9823948 | J35: 232.7328367 | U35: =IF(SHDR_RAD=0,P1_Y,SIN(H35)*SHDR_RAD+SHCY) -> 406.6328367
B36: OVERALL DIAMETER | C36: =OD -> 826 | H36: =ACOS(($I$36-C$42)/C$43) -> 0.8582920863 | I36: =P2_X -> 122.0746169 | J36: 231.152506 | U36: =P2_Y -> 405.052506
A37: * | B37: SECTION HEIGHT (A) | C37: =SH -> 133.604 | H37: Left side
A38: * | B38: TRD ARC LENGTH (B) | C38: =ASIN(RTW/Tread_Rad/2)*Tread_Rad*2 -> 238.148124 | I38: =-I31 -> -110.1301192 | J38: =J31 -> 235.9860082
A39: * | B39: TREAD RADIUS (C) | C39: =Tread_Rad -> 1949 | I39: -112.7325795 | J39: 235.6665723
A40: * | B40: SHOULDER RADIUS (SR) | C40: =SHDR_RAD -> 20 | I40: -115.2708875 | J40: 235.0094339
B41: D (Equator Height from Rim) | C41: =(C$37+F_Height)/2 -> 75.552 | I41: -117.7014172 | J41: 234.0258873
A42: * | B42: E (Upper Sidewall Arc Offset) | C42: =DSW/2-C$43 -> 78.79316985 | I42: -119.9823948 | J42: 232.7328367
A43: * | B43: F (Upper Sidewall Arc) | C43: =SHDR_RAD+(((SHCY-EQD/2)/2)^2+((C$26-SHDR_RAD-SHCX)/2)^2)/((C$26-SHDR_RAD-SHCX)/2) -> 66.20683015 | I43: -122.0746169 | J43: 231.152506
A44: * | B44: SECTION WIDTH | C44: =DSW -> 290
A45: * | B45: M (Lower Sidewall Arc Offset) | C45: =DSW/2-C$46 -> 69.31248132 | H45: TIRE PROFILE: UPPER SIDEWALL ARC
B46: N (Lower Sidewall Arc) | C46: =((C48+Rs/2-EQD/2)^2+(DSW/2-(C$47+New_Rim_Width*12.7))^2)/(2*(DSW/2-(C$47+New_Rim_Width*12.7))) -> 75.68751868 | H46: Right side
B47: FLG X-20 DEG TAN | C47: =VLOOKUP(R_Flange,Rim_Tbl,2) -> 5.84962 | H47: =ACOS(($I$47-C$42)/C$43) -> 0.8582920863 | I47: =P2_X -> 122.0746169 | J47: =U47+Center -> 231.152506 | U47: =P2_Y -> 405.052506
B48: FLG Y-20 DEG TAN | C48: =VLOOKUP(R_Flange,Rim_Tbl,3) -> 17.07896 | H48: =H47-(H$47-H$57)/10 -> 0.7724628777 | I48: =COS(H48)*C$43+C$42 -> 126.2101042 | J48: 227.2578296 | U48: =SIN(H48)*C$43+EQD/2 -> 401.1578296
B49: FLANGE DIAMETER | C49: =2*C$48+Rs -> 597.75792 | H49: 0.686633669 | I49: 129.9965018 | J49: 223.0229799 | U49: 396.9229799
H50: 0.6008044604 | I50: 133.4059338 | J50: 218.4791342 | U50: 392.3791342
H51: 0.5149752518 | I51: 136.4132993 | J51: 213.6597451 | U51: 387.5597451
H52: 0.4291460431 | I52: 138.9964579 | J52: 208.6002935 | U52: 382.5002935
H53: 0.3433168345 | I53: 141.1363919 | J53: 203.3380276 | U53: 377.2380276
H54: 0.2574876259 | I54: 142.8173469 | J54: 197.9116891 | U54: 371.8116891
H55: 0.1716584173 | I55: 144.0269474 | J55: 192.3612274 | U55: 366.2612274
H56: 0.08582920863 | I56: 144.7562883 | J56: 186.7275056 | U56: 360.6275056
H57: 0 | I57: 145 | J57: 181.052 | U57: 354.952
H58: Left side
I59: =-I47 -> -122.0746169 | J59: =J47 -> 231.152506
I60: -126.2101042 | J60: 227.2578296
I61: -129.9965018 | J61: 223.0229799
I62: -133.4059338 | J62: 218.4791342
I63: -136.4132993 | J63: 213.6597451
I64: -138.9964579 | J64: 208.6002935
I65: -141.1363919 | J65: 203.3380276
I66: -142.8173469 | J66: 197.9116891
I67: -144.0269474 | J67: 192.3612274
I68: -144.7562883 | J68: 186.7275056
I69: -145 | J69: 181.052
H71: TIRE PROFILE: LOWER SIDEWALL ARC
H72: Right side
H73: 0 | I73: =COS(H73)*C$46+C$45 -> 145 | J73: =U73+Center -> 181.052 | U73: =SIN(H73)*C$46+C$41+Rim_Code*12.7 -> 354.952
H74: =H$83/10+H73 -> -0.0834333833 | I74: =IF(I$83<I$73,COS(H74)*C$46+C$45,(I$83-I$73)/10+I73) -> 144.7367175 | J74: 174.7444581 | U74: =IF(I$83<I$73,SIN(H74)*C$46+C$41+Rim_Code*12.7,(U$83-U$73)/10+U73) -> 348.6444581
H75: -0.1668667666 | I75: 143.9487016 | J75: 168.4807984 | U75: 342.3807984
H76: -0.2503001499 | I76: 142.6414346 | J76: 162.3045977 | U76: 336.2045977
H77: -0.3337335332 | I77: 140.8240113 | J77: 156.2588244 | U77: 330.1588244
H78: -0.4171669165 | I78: 138.5090758 | J78: 150.3855395 | U78: 324.2855395
H79: -0.5006002998 | I79: 135.7127331 | J79: 144.725604 | U79: 318.625604
H80: -0.5840336831 | I80: 132.4544378 | J80: 139.3183946 | U80: 313.2183946
H81: -0.6674670664 | I81: 128.756858 | J81: 134.2015297 | U81: 308.1015297
H82: -0.7509004497 | I82: 124.6457182 | J82: 129.4106079 | U82: 303.3106079
H83: =-ACOS(($I$83-C$45)/C$46) -> -0.834333833 | I83: =New_Rim_Width*12.7+C$47 -> 120.14962 | J83: 124.97896 | U83: =C$49/2 -> 298.87896
H84: Left side
I85: =-I73 -> -145 | J85: =J73 -> 181.052
I86: -144.7367175 | J86: =J74 -> 174.7444581
I87: -143.9487016 | J87: 168.4807984
I88: -142.6414346 | J88: 162.3045977
I89: -140.8240113 | J89: 156.2588244
I90: -138.5090758 | J90: 150.3855395
I91: -135.7127331 | J91: 144.725604
I92: -132.4544378 | J92: 139.3183946
I93: -128.756858 | J93: 134.2015297
I94: -124.6457182 | J94: 129.4106079
I95: -120.14962 | J95: 124.97896
H98: RIM PROFILE: RIGHT FLANGE
H105: 1.256637061 | I105: =New_Rim_Width*12.7+F_Top_Rad+COS(H105)*F_Top_Rad -> 126.7356614 | K105: =U105+Center -> 124.9350369 | U105: =Rs/2+F_Height-F_Top_Rad+SIN(H105)*F_Top_Rad -> 298.8350369
H106: 1.570796327 | I106: =New_Rim_Width*12.7+F_Top_Rad+COS(H106)*F_Top_Rad -> 123.8 | K106: 125.4 | U106: 299.3
H107: 1.884955592 | I107: 120.8643386 | K107: 124.9350369 | U107: 298.8350369
H108: 2.199114858 | I108: 118.2160401 | K108: 123.5856614 | U108: 297.4856614
H109: 2.513274123 | I109: 116.1143386 | K109: 121.4839599 | U109: 295.3839599
H110: 2.827433388 | I110: 114.7649631 | K110: 118.8356614 | U110: 292.7356614
H111: 3.141592654 | I111: 114.3 | K111: 115.9 | U111: 289.8
H112: =PI() -> 3.141592654 | I112: =New_Rim_Width*12.7-(F_Bot_Rad+COS(H112)*F_Bot_Rad) -> 114.3 | K112: 114.4 | U112: =Rs/2+F_Bot_Rad+SIN(H112)*F_Bot_Rad -> 288.3
H113: =(H$117-H$112)/5+H112 -> 3.452974141 | I113: 113.987423 | K113: 112.4085691 | U113: 286.3085691
H114: =(H$117-H$112)/5+H113 -> 3.764355629 | I114: 113.0797548 | K114: 110.6086692 | U114: 284.5086692
H115: =(H$117-H$112)/5+H114 -> 4.075737116 | I115: 111.6642927 | K115: 109.1734101 | U115: 283.0734101
H116: =(H$117-H$112)/5+H115 -> 4.387118604 | I116: 109.8771725 | K116: 108.2408317 | U116: 282.1408317
H117: =3*PI()/2-5/360 -> 4.698500091 | I117: 107.8902749 | K117: 107.9006269 | U117: 281.8006269
I118: =I117-12.7 -> 95.19027488 | K118: 106.757 | U118: =Rs/2-1.143 -> 280.657
H122: RIM PROFILE: LEFT FLANGE
I129: =-I105 -> -126.7356614 | K129: =K105 -> 124.9350369
I130: =-I106 -> -123.8 | K130: 125.4
I131: -120.8643386 | K131: 124.9350369
I132: -118.2160401 | K132: 123.5856614
I133: -116.1143386 | K133: 121.4839599
I134: -114.7649631 | K134: 118.8356614
I135: -114.3 | K135: 115.9
I136: -114.3 | K136: 114.4
I137: -113.987423 | K137: 112.4085691
I138: -113.0797548 | K138: 110.6086692
I139: -111.6642927 | K139: 109.1734101
I140: -109.8771725 | K140: 108.2408317
I141: -107.8902749 | K141: 107.9006269
I142: -95.19027488 | K142: 106.757
H144: TRA MAX BOX: TIRE CROWN
H145: Right side
H148: =ACOS($I$148/MAX_TR) -> 1.512375882 | I148: =MAX_Envelope_RTW/2 -> 153.5 | L148: =U148+Center -> 240.1149552 | U148: =SIN(H148)*MAX_TR+MAX_OD/2-MAX_TR -> 414.0149552
H149: =(H$158-H$148)/10+H148 -> 1.518217926 | I149: =COS(H149)*MAX_TR -> 138.1649347 | L149: =U149+Center -> 240.9669174 | U149: 414.8669174
H150: =(H$158-H$148)/10+H149 -> 1.524059971 | I150: =COS(H150)*MAX_TR -> 122.8251539 | L150: 241.7292774 | U150: 415.6292774
H151: 1.529902015 | I151: 107.4811811 | L151: 242.4020092 | U151: 416.3020092
H152: 1.53574406 | I152: 92.1335401 | L152: 242.9850899 | U152: 416.8850899
H153: 1.541586104 | I153: 76.78275462 | L153: 243.4784996 | U153: 417.3784996
H154: 1.547428149 | I154: 61.42934859 | L154: 243.8822214 | U154: 417.7822214
H155: 1.553270193 | I155: 46.07384601 | L155: 244.1962415 | U155: 418.0962415
H156: 1.559112238 | I156: 30.71677097 | L156: 244.4205492 | U156: 418.3205492
H157: 1.564954282 | I157: 15.35864757 | L157: 244.5551369 | U157: 418.4551369
H158: =PI()/2 -> 1.570796327 | I158: 0 | L158: 244.6 | U158: 418.5
H159: Left side
I160: =-I148 -> -153.5 | L160: =L148 -> 240.1149552
I161: -138.1649347 | L161: 240.9669174
I162: -122.8251539 | L162: 241.7292774
I163: -107.4811811 | L163: 242.4020092
I164: -92.1335401 | L164: 242.9850899
I165: -76.78275462 | L165: 243.4784996
I166: -61.42934859 | L166: 243.8822214
I167: -46.07384601 | L167: 244.1962415
I168: -30.71677097 | L168: 244.4205492
I169: -15.35864757 | L169: 244.5551369
I170: 0 | L170: 244.6
H172: TRA MAX BOX: LT-HF SIDES
H173: Right side
I174: =I148 -> 153.5 | L174: =U174+Center -> 240.1149552 | U174: =U148 -> 414.0149552
I175: =MAX_SW/2 -> 156.5 | L175: =U175+Center -> 202.8 | U175: =Rim_Code*12.7+0.7*MAX_SH -> 376.7
I176: =MAX_SW/2 -> 156.5 | L176: =U176+Center -> 147.2 | U176: =Rim_Code*12.7+0.3*MAX_SH -> 321.1
I177: =New_Rim_Width*12.7 -> 114.3 | L177: =U177+Center -> 107.9 | U177: =Rs/2 -> 281.8
H178: Left side
I179: =-I174 -> -153.5 | L179: =L174 -> 240.1149552
I180: =-I175 -> -156.5 | L180: =L175 -> 202.8
I181: =-I176 -> -156.5 | L181: =L176 -> 147.2
I182: =-I177 -> -114.3 | L182: =L177 -> 107.9
H237: PLOT RANGE FINDER
H239: Left/Top | I239: =-VLOOKUP(MAX_SW,Scale_Tbl2,2) -> -175 | J239: =U239+Center -> 21.1 | U239: =IF(VLOOKUP(MAX_SW,Scale_Tbl2,3)>VLOOKUP(MAX_SH,Scale_Tbl,3),VLOOKUP(MAX_SW,Scale_Tbl2,3),VLOOKUP(MAX_SH,Scale_Tbl,3)) -> 195
H241: Right/Top | I241: =VLOOKUP(MAX_SW,Scale_Tbl2,2) -> 175 | J241: =U241+Center -> 21.1 | U241: =IF(VLOOKUP(MAX_SW,Scale_Tbl2,3)>VLOOKUP(MAX_SH,Scale_Tbl,3),VLOOKUP(MAX_SW,Scale_Tbl2,3),VLOOKUP(MAX_SH,Scale_Tbl,3)) -> 195
H339: LABELING
H340: Scale
I341: =I345+25 -> 201.5 | L341: =5+U341+Center -> 224.6 | U341: =MAX_OD/2-25 -> 393.5
I342: =I341 -> 201.5 | L342: =55+U342+Center -> 274.6 | U342: =U341 -> 393.5 | V342: =L342-L341&"mm" -> 50mm
I344: =I345+50 -> 226.5 | L344: =30+U344+Center -> 249.6 | U344: =U341 -> 393.5 | V344: =(I344-I345)&"mm" -> 50mm
I345: =I175+20 -> 176.5 | L345: =L344 -> 249.6
H346: Center Table Data
I347: =-59*X_Ratio -> -76.7 | M347: =VLOOKUP(MAX_SW,Scale_Tbl2,4)-2*Y_Ratio -> 172.1
H348: =(Do_nom-Rim_Code)/3+1.6 -> 5.266666667 | I348: =I347+26*X_Ratio -> -42.9 | N348: =M347 -> 172.1 | V348: =""&IF(Prof_Type="Custom"," ","")&Prof_Type -> TRA Design
I349: =I348+22*X_Ratio -> -14.3 | O349: =N348 -> 172.1
I350: =I349+19*X_Ratio -> 10.4 | P350: =O349 -> 172.1 | V350: Max Envelope
I352: =I347 -> -76.7 | M352: =VLOOKUP(MAX_SW,Scale_Tbl2,4)-$H$348*Y_Ratio -> 167.3633333
I353: =I348+12*X_Ratio -> -27.3 | N353: =M352 -> 167.3633333 | V353: New
I354: =I349 -> -14.3 | O354: =N353 -> 167.3633333
I355: =I350 -> 10.4 | P355: =O354 -> 167.3633333 | V355: Dimensions
I357: =I352 -> -76.7 | M357: =M352-$H$348*Y_Ratio -> 159.7266667 | V357: OD
I358: =I353-8*X_Ratio -> -37.7 | N358: =M357 -> 159.7266667 | V358: =""&OD&"mm" -> 826mm
I359: =I354 -> -14.3 | O359: =N358 -> 159.7266667
I360: =I355+4*X_Ratio -> 15.6 | P360: =O359 -> 159.7266667 | V360: =""&MAX_OD&"mm" -> 837mm
I362: =I357 -> -76.7 | M362: =M357-$H$348*Y_Ratio -> 152.09 | V362: SW
I363: =I358 -> -37.7 | N363: =M362 -> 152.09 | V363: =""&DSW&"mm" -> 290mm
I364: =I359 -> -14.3 | O364: =N363 -> 152.09
I365: =I360 -> 15.6 | P365: =O364 -> 152.09 | V365: =""&MAX_SW&"mm" -> 313mm
I367: =I362 -> -76.7 | M367: =M362-$H$348*Y_Ratio -> 144.4533333 | V367: C/Cmax
I368: =I363 -> -37.7 | N368: =M367 -> 144.4533333 | V368: =""&RTW&"mm" -> 238mm
I369: =I364 -> -14.3 | O369: =N368 -> 144.4533333
I370: =I365 -> 15.6 | P370: =O369 -> 144.4533333 | V370: =IF(Type="P",""&FIXED(MAX_Envelope_RTW,0)&"mm",""&FIXED(MAX_Envelope_RTW,0)&"mm") -> 307mm
I372: =I367 -> -76.7 | M372: =M367-$H$348*Y_Ratio -> 136.8166667 | V372: R
I373: =I368 -> -37.7 | N373: =M372 -> 136.8166667 | V373: =""&Tread_Rad&"mm" -> 1949mm
I374: =I369 -> -14.3 | O374: =N373 -> 136.8166667
I375: =I370 -> 15.6 | P375: =O374 -> 136.8166667 | V375: =""&MAX_Envelope_TR&"mm" -> 2629mm
I377: 0 | M377: =U377+Center-27*Y_Ratio -> 66.35 | U377: =Rim_Code*12.7 -> 279.4 | V377: ="Rim Width = "&Rim -> Rim Width = 22x9J
H379: Generic Dimensioning
H380: MAXIMUM OVERALL WIDTH
H382: Dimension line right point | I382: =MAX_SW/2 -> 156.5 | R382: =VLOOKUP(MAX_SW,Scale_Tbl2,4)+8*Y_Ratio -> 186.6
H383: Dimension line left point | I383: =-I382 -> -156.5 | R383: =R382 -> 186.6
H385: Data label positioning line left point | I385: 0 | T385: =R383 -> 186.6
... 83 more rows

Sheet Calcs (hidden)
A1: TRA
B3: Independent Variables
B5: Prof_Type | C5: =Profile!D2 -> TRA Design
B6: Title | C6: ="''"&Prof_Type&"'' Tire Profile"&" - "&Dimen&IF(Flag1=TRUE," - HWY/Traction Tread - Radial Ply"," - DEEP Traction Tread - Radial Ply")&" Estimated Dimensions" -> ''TRA Design'' Tire Profile - 33x11.50R22 LT - HWY/Traction Tread - Radial Ply Estimated Dimensions | E6: Dr | F6: RIM | G6: SW | H6: Do | I6: H | J6: S.70 | K6: S.80 | L6: D | M6: AR | N6: Sd
B7: Rim | C7: =FIXED(Dr,0)&"x"&IF(Contour="Meas.",M_Contour,Contour) -> 22x9J | E7: =Rim_Code -> 22 | F7: =IF(AR>0.45,VLOOKUP(SN,Tables!$AG$6:$AI$18,2),IF(AR>0.4,VLOOKUP(SN,Tables!$AG$23:$AI$35,2),VLOOKUP(SN,Tables!$AG$39:$AI$51,2))) -> 9 | G7: ='DATA SHEET'!$K$27 -> 11.42 | H7: =Do_nom-0.48 -> 32.52 | I7: =(Do-Dr)/2 -> 5.26 | J7: =ROUND(+G7*((180-((180*ASIN(F7/G7))/PI()))/135.6),2) -> 10.78 | K7: =ROUND(+G7*((180-((180*ASIN(F7/G7))/PI()))/126.9),2) -> 11.52 | L7: =(0.96*J7)-I7 -> 5.0888 | M7: =((Do-Dr)/2)/SN -> 0.4573913043 | N7: =IF(L7<=0,K7,(K7-(0.7252-0.1297*(L7/K7)+1.0469*((L7/K7)^2))*L7)) -> 7.081603332
B9: PROFILE CENTER: | C9: =-Rim_Code*12.7+VLOOKUP(MAX_SW,Scale_Tbl2,4)-MAX_SH/2 -> -173.9
B10: X Ratio: | C10: =(VLOOKUP(MAX_SW,Scale_Tbl2,2)+20)/150 -> 1.3
B11: Y Ratio: | C11: =(VLOOKUP(MAX_SW,Scale_Tbl,3)+20)/200 -> 1.45
B12: Tread depth selection | C12: =TRA_Window!G4 -> HWY / TRAC. Tread | K12: Standardized LR | L12: =IF(ISNUMBER(SEARCH("B",STATUS!B3)),"B","") -> 
B13: Flag1 (Hwy/Traction Tread) | C13: =IF(C12=Tables!R46,TRUE,FALSE) -> TRUE | K13: Standardized LR | L13: =IF(ISNUMBER(SEARCH("C",STATUS!B3)),"C","") -> 
B14: Flag2 (Deep Traction Tread) | C14: =IF(C12=Tables!R47,TRUE,FALSE) -> FALSE | K14: Standardized LR | L14: =IF(ISNUMBER(SEARCH("D",STATUS!B3)),"D","") -> 
K15: Standardized LR | L15: =IF(ISNUMBER(SEARCH("E",STATUS!B3)),"E","") -> 
K16: Standardized LR | L16: =IF(ISNUMBER(SEARCH("F",STATUS!B3)),"F","") -> 
B17: Linked & Named Variables | K17: Standardized LR | L17: =IF(ISNUMBER(SEARCH("G",STATUS!B3)),"G","") -> 
B18: Dimen | C18: =CONCATENATE(FIXED(Do_nom,0),"x"&FIXED(SN,2),"R"&FIXED(Rim_Code,0)," ",,Type) -> 33x11.50R22 LT | K18: Highest standardized LR | L18: =LOOKUP(2,1/(COUNTIF(L12:L17,">"&L12:L17&"*")=0),L12:L17) -> 
B19: Type | C19: ='DATA SHEET'!H6 -> LT | K19: Requested LR > highest standardized LR | L19: =IF(AND(L18<>"",'DATA SHEET'!J6<>""),(CODE(UPPER(L18))-64)<(CODE(UPPER('DATA SHEET'!J6))-64),FALSE()) -> FALSE
B20: SW | C20: =SN*25.4 -> 292.1
B21: AR | C21: =ROUND((Do_nom-Rim_Code)/2/SN*200,-1)/2 -> 50
B22: Rim_Code | C22: =Rim_Code -> 22
B23: Load_Type
B24: Dr | C24: =Rim_Code*25.4 -> 558.8
B25: Rs | C25: =VLOOKUP(Rim_Code,Rim_Diams,3) -> 563.6
B26: T_Rim | C26: =SN*0.8*25.4 -> 233.68
B27: M_Rim | C27: =M_Rim -> 9
B28: Min_SF | C28: =ROUND(('DATA SHEET'!Y27+0.4*(New_Rim_Width-M_Rim))*25.4,0)+IF(Flag1=TRUE,0,6) -> 1102
B29: DSW (Meas. Rim) | C29: =IF(Prof_Type="TRA Min SW",MIN_SW1,IF(Prof_Type="TRA MIN OD",MIN_SW2,IF(Prof_Type="Custom",ROUND(((M_Rim-T_Rim/25.4)*10+Cust_SW),0),ROUND(((M_Rim-T_Rim/25.4)*10+SW)*VLOOKUP(Prof_Type,Profile_Tbl,2),0)))) -> 290
B30: DSW (Opt. Rim) | C30: =IF(Prof_Type="TRA Min SW",MIN_SW1,IF(Prof_Type="TRA MIN OD",MIN_SW2,IF(Prof_Type="Custom",(New_Rim_Width-M_Rim)*10+Cust_SW,(New_Rim_Width-M_Rim)*10+DSW_M))) -> 290
B31: SH | C31: =IF(Prof_Type="TRA Min SW",MIN_SH1,IF(Prof_Type="TRA MIN OD",MIN_SH2,IF(Prof_Type="Custom",(Cust_OD-Dr_mm)/2,Calcs!I7*25.4*VLOOKUP(Prof_Type,Profile_Tbl,3))))+IF(Flag1=TRUE,0,3) -> 133.604
B32: Design O.D. | C32: =IF(Prof_Type="TRA Min SW",MIN_OD1,IF(Prof_Type="TRA MIN OD",MIN_OD2,IF(TRA_Window!G4="HWY / TRAC. Tread",'DATA SHEET'!M26,'DATA SHEET'!O26))) -> 826
B33: MAX_SW | C33: =ROUND('DATA SHEET'!R27*25.4+(New_Rim_Width-M_Rim)*10,0) -> 313
B34: MAX SH | C34: =IF(Flag1=TRUE,ROUND(('DATA SHEET'!T26-Dr_mm)/2,0),ROUND(('DATA SHEET'!T26-Dr_mm)/2,0)) -> 139
B35: MAX OD | C35: =IF(Flag1=TRUE,'DATA SHEET'!T26,'DATA SHEET'!W26) -> 837
B36: MEAS RIM MAX SW | C36: ='DATA SHEET'!R26 -> 313
B37: MAX RTW | C37: =ROUND(INDEX(RTW_Tbl_X,MATCH(A&" - TRA Max",RTW_Tbl_AR,0))*MR_MAX_SW,0) -> 263
B38: MAX Envelope RTW | C38: =ROUND(INDEX(RTW_Tbl_X,MATCH(A&" - TRA Max Envelope",RTW_Tbl_AR,0))*MR_MAX_SW,0) -> 307
B39: MAX TR | C39: =ROUND(INDEX(RTW_Tbl_Trd_Rad__Y,MATCH(A&" - TRA Max",RTW_Tbl_AR,0))*MR_MAX_SW,0) -> 2629
B40: MAX Envelope TR | C40: =ROUND(INDEX(RTW_Tbl_Trd_Rad__Y,MATCH(A&" - TRA Max Envelope",RTW_Tbl_AR,0))*MR_MAX_SW,0) -> 2629
B41: MIN SW1 - SW Priority | C41: =(New_Rim_Width-M_Rim)*10+ROUND('DATA SHEET'!K26*0.95,0) -> 276
B42: MIN SW2 - SH Priority | C42: =Min_SF-MIN_OD2 -> 283
B43: MIN SH1 - SW Priority | C43: =ROUND((Min_SF-MIN_SW1-Dr_mm)/2,0) -> 134
B44: MIN SH2 - SH Priority | C44: =ROUND(Calcs!I7*0.97*25.4,0)+IF(Flag1=TRUE,0,3) -> 130
B45: MIN OD1 - SW Priority | C45: =Min_SF-MIN_SW1 -> 826
B46: MIN OD2 - SH Priority | C46: =ROUND(2*MIN_SH2+Dr_mm,0) -> 819

Sheet Tables (hidden)
K1: TRA
B2: LI | C2: AVG | D2: LI | E2: Load Index | F2: LOAD kg | G2: LOAD lb | H2: AVG | I2: Index | K2: Rim Flange Values | T2: RIM | U2: mm | V2: Rim Seat | AG2: RIM WIDTH / SECTION WIDTH | AK2: FOR ASPECT RATIO ≥ 70 | AM2: FOR ASPECT RATIO ˂ 70, > 45 | AO2: FOR ASPECT RATIO ≤ 45, > 40 | AQ2: FOR ASPECT RATIO ≤ 40, > 30 | AS2: FOR ASPECT RATIO ≤ 30
T3: 0 | U3: 0 | V3: 0 | AG3: FOR ASPECT RATIO > 45 | AK3: NOMINAL | AL3: APPROVED | AM3: NOMINAL | AN3: APPROVED | AO3: NOMINAL | AP3: APPROVED | AQ3: NOMINAL | AR3: APPROVED | AS3: NOMINAL | AT3: APPROVED
K4: Rim Profile | L4: DX | M4: DY | N4: Flange Height | O4: Flange Rad | P4: Heel Rad | Q4: Bmax | T4: 10 | U4: 254 | V4: 253.2 | AG4: NOMINAL | AH4: RIM | AI4: SECTION | AK4: SECT. WIDTH | AL4: RIMS | AM4: SECT. WIDTH | AN4: RIMS | AO4: SECT. WIDTH | AP4: RIMS | AQ4: SECT. WIDTH | AR4: RIMS | AS4: SECT. WIDTH | AT4: RIMS
B5: 335 | C5: 335 | D5: 335 | E5: 70 | F5: 335 | G5: 740 | H5: 740 | I5: 70 | T5: 11 | U5: =279 -> 279 | V5: =278.6 -> 278.6 | AG5: SECT. WIDTH | AH5: WIDTH | AI5: WIDTH
B6: 345 | C6: 340 | D6: 345 | E6: 71 | F6: 345 | G6: 760 | H6: =AVERAGEA(G5:G6) -> 750 | I6: 71 | K6: B | L6: 5.01396 | M6: 13.61186 | N6: 14.4 | O6: 7.5 | P6: 4.5 | Q6: 13 | T6: 12 | U6: 305 | V6: 304 | AG6: 7.5 | AH6: =MROUND(AG6*0.8,0.5) -> 6 | AI6: =AG6+(0.4*(AH6-(AG6*0.8))) -> 7.5 | AK6: 7.5 | AL6: 5J, 5½J, 6J, 6½J | AM6: 7.5 | AN6: 5½J, 6J, 6½J, 7J | AO6: 7.5 | AP6: 6J, 6½J, 7J | AQ6: 7.5 | AR6: 6½J, 7J, 7½J | AS6: 7.5 | AT6: 7J, 7½J
B7: 355 | C7: 350 | D7: 355 | E7: 72 | F7: 355 | G7: 785 | H7: 772.5 | I7: 72 | K7: J | L7: 5.84962 | M7: 17.07896 | N7: 17.5 | O7: 9.5 | P7: 6.5 | Q7: 15 | T7: 13 | U7: 330 | V7: 329.4 | AG7: 8.5 | AH7: 7 | AI7: 8.58 | AK7: 8.5 | AL7: 5½J, 6J, 6½J, 7J | AM7: 8.5 | AN7: 6J, 6½J, 7J, 7½J | AO7: 8.5 | AP7: 7J, 7½J, 8J | AQ7: 8.5 | AR7: 7J, 7½J, 8J, 8½J | AS7: 8.5 | AT7: 7½J, 8J, 8½J
B8: 365 | C8: 360 | D8: 365 | E8: 73 | F8: 365 | G8: 805 | H8: 795 | I8: 73 | K8: K | L8: 7.02056 | M8: 18.86458 | N8: 19.6 | O8: 10.7 | P8: 7.1 | Q8: 15 | T8: 14 | U8: 356 | V8: 354.8 | AG8: 9.5 | AH8: 7.5 | AI8: 9.46 | AK8: 9.5 | AL8: 6J, 6½J, 7J, 7½J, 8J | AM8: 9.5 | AN8: 6½J, 7J, 7½J, 8J, 8½J | AO8: 9.5 | AP8: 7½J, 8J, 8½J, 9J | AQ8: 9.5 | AR8: 8J, 8½J, 9J, 9½J | AS8: 9.5 | AT8: 8½J, 9J, 9½J
B9: 375 | C9: 370 | D9: 375 | E9: 74 | F9: 375 | G9: 825 | H9: 815 | I9: 74 | K9: L | L9: 6.6548 | M9: 20.7645 | N9: 21.6 | O9: 11.9 | P9: 7.1 | Q9: 15 | T9: 15 | U9: 381 | V9: 380.2 | AG9: 10.5 | AH9: 8.5 | AI9: 10.54 | AK9: 10.5 | AL9: 7J, 7½J, 8J, 8½J, 9J | AM9: 10.5 | AN9: 7½J, 8J, 8½J, 9J, 9½J | AO9: 10.5 | AP9: 8½J, 9J, 9½J, 10J | AQ9: 10.5 | AR9: 9J, 9½J, 10J, 10½J | AS9: 10.5 | AT9: 9½J, 10J, 10½J
B10: 387 | C10: 381 | D10: 387 | E10: 75 | F10: 387 | G10: 855 | H10: 840 | I10: 75 | K10: T | L10: 5.84962 | M10: 17.07896 | N10: 18 | O10: 8.9 | P10: 6.35 | Q10: 15 | T10: 16 | U10: 406 | V10: 405.6 | AG10: 11.5 | AH10: 9 | AI10: 11.42 | AK10: 11.5 | AL10: 7½J, 8J, 8½J, 9J, 9½J, 10J | AM10: 11.5 | AN10: 8J, 8½J, 9J, 9½J, 10J, 10½J | AO10: 11.5 | AP10: 9J, 9½J, 10J, 10½J, 11J | AQ10: 11.5 | AR10: 10J, 10½J, 11J, 11½J | AS10: 11.5 | AT10: 10½J, 11J, 11½J
B11: 400 | C11: 394 | D11: 400 | E11: 76 | F11: 400 | G11: 880 | H11: 867.5 | I11: 76 | T11: 17 | U11: 432 | V11: 436.6 | AG11: 12.5 | AH11: =MROUND(AG11*0.8,0.5) -> 10 | AI11: =AG11+(0.4*(AH11-(AG11*0.8))) -> 12.5 | AK11: 12.5 | AL11: 8J, 8½J, 9J, 9½J, 10J, 10½J | AM11: 12.5 | AN11: 8½J, 9J, 9½J, 10J, 10½J, 11J | AO11: 12.5 | AP11: 10J, 10½J, 11J, 11½J, 12J | AQ11: 12.5 | AR11: 10½J, 11J, 11½J, 12J, 12½J | AS11: 12.5 | AT11: 11½J, 12J, 12½J
B12: 412 | C12: 406 | D12: 412 | E12: 77 | F12: 412 | G12: 910 | H12: 895 | I12: 77 | T12: 18 | U12: 457 | V12: 462 | AG12: 13.5 | AH12: 11 | AI12: 13.58 | AK12: 13.5 | AL12: 9J, 9½J, 10J, 10½J, 11J, 11½J | AM12: 13.5 | AN12: 9½J, 10J, 10½J, 11J, 11½J, 12J | AO12: 13.5 | AP12: 11J, 11½J, 12J, 12½J, 13J | AQ12: 13.5 | AR12: 11½J, 12J, 12½J, 13J, 13½J | AS12: 13.5 | AT12: 12J, 12½J, 13J, 13½J
B13: 425 | C13: 419 | D13: 425 | E13: 78 | F13: 425 | G13: 935 | H13: 922.5 | I13: 78 | K13: Profile Sizing Factors | T13: 19 | U13: 483 | V13: 487.4 | AG13: 14.5 | AH13: 11.5 | AI13: 14.46 | AK13: 14.5 | AL13: 9½J, 10J, 10½J, 11J, 11½J, 12J, 12½J | AM13: 14.5 | AN13: 10J, 10½J, 11J, 11½J, 12J, 12½J, 13J | AO13: 14.5 | AP13: 11½J, 12J, 12½J, 13J, 13½J, 14J | AQ13: 14.5 | AR13: 12½J, 13J, 13½J, 14J, 14½J | AS13: 14.5 | AT13: 13J, 13½J, 14J, 14½J
B14: 437 | C14: 431 | D14: 437 | E14: 79 | F14: 437 | G14: 965 | H14: 950 | I14: 79 | N14: "Custom" Values | T14: =20 -> 20 | U14: 508 | V14: 512.8 | AG14: 15.5 | AH14: 12.5 | AI14: 15.54 | AK14: 15.5 | AL14: 10J, 10½J, 11J, 11½J, 12J, 12½J, 13J | AM14: 15.5 | AN14: 11J, 11½J, 12J, 12½J, 13J, 13½J, 14J | AO14: 15.5 | AP14: 12½J, 13J, 13½J, 14J, 14½J | AQ14: 15.5 | AR14: 13J, 13½J, 14J, 14½J, 15J, 15½J | AS14: 15.5 | AT14: 14J, 14½J, 15J, 15½J
B15: 450 | C15: 444 | D15: 450 | E15: 80 | F15: 450 | G15: 990 | H15: =AVERAGEA(G14:G15) -> 977.5 | I15: 80 | L15: Width % | M15: SH % | N15: Shldr Rad | O15: Width | P15: OD | Q15: RTW (X) | R15: Trd Rad (Y) | T15: =21 -> 21 | U15: 533 | V15: 538.2 | AG15: 16.5 | AH15: 13 | AI15: 16.42 | AK15: 16.5 | AL15: 11J, 11½J. 12J, 12½J, 13J, 13½J, 14J | AM15: 16.5 | AN15: 11½J. 12J, 12½J, 13J, 13½J, 14J, 14½J, 15J | AO15: 16.5 | AP15: 13J, 13½J, 14J, 14½J, 15J, 15½J | AQ15: 16.5 | AR15: 14J, 14½J, 15J, 15½J, 16J, 16½J | AS15: 16.5 | AT15: 15J, 15½J, 16J, 16½J
B16: 462 | C16: 456 | D16: 462 | E16: 81 | F16: 462 | G16: 1020 | H16: 1005 | I16: 81 | K16: Custom | L16: 1 | M16: 1 | N16: 30 | O16: =Cust_SW -> 300 | P16: =Cust_OD -> 925 | Q16: =Cust_C -> 250 | R16: =Cust_R -> 1300 | T16: 22 | U16: 559 | V16: 563.6 | AG16: 17.5 | AH16: 14 | AI16: 17.5 | AK16: 17.5 | AL16: 11½J. 12J, 12½J, 13J, 13½J, 14J, 14½J, 15J | AM16: 17.5 | AN16: 12½J, 13J, 13½J, 14J, 14½J, 15J, 15½J, 16J | AO16: 17.5 | AP16: 14J, 14½J, 15J, 15½J, 16J, 16½J | AQ16: 17.5 | AR16: 15J, 15½J, 16J, 16½J, 17J, 17½J | AS16: 17.5 | AT16: 16J, 16½J, 17J, 17½J
B17: 475 | C17: 469 | D17: 475 | E17: 82 | F17: 475 | G17: 1045 | H17: 1032.5 | I17: 82 | K17: TRA Design | L17: 1 | M17: 1 | N17: =20 -> 20 | T17: =23 -> 23 | U17: 584 | V17: 589 | AG17: 18.5 | AH17: 15 | AI17: 18.58 | AK17: 18.5 | AL17: 12J, 12½J, 13J, 13½J, 14J, 14½J, 15J, 15½J | AM17: 18.5 | AN17: 13J, 13½J, 14J, 14½J, 15J, 15½J, 16J, 16½J | AO17: 18.5 | AP17: 15J, 15½J, 16J, 16½J, 17J, 17½J | AQ17: 18.5 | AR17: 15½J, 16J, 16½J, 17J, 17½J, 18J, 18½J | AS17: 18.5 | AT17: 16½J, 17J, 17½J, 18J, 18½J
B18: 487 | C18: 481 | D18: 487 | E18: 83 | F18: 487 | G18: 1075 | H18: 1060 | I18: 83 | K18: TRA Max | L18: 1.07 | M18: 1.03 | N18: =20 -> 20 | T18: =24 -> 24 | U18: 610 | V18: 614.4 | AG18: 19.5 | AH18: 15.5 | AI18: 19.46 | AK18: 19.5 | AL18: 12½J, 13J, 13½J, 14J, 14½J, 15J, 15½J, 16J, 16½J | AM18: 19.5 | AN18: 13½J, 14J, 14½J, 15J, 15½J, 16J, 16½J, 17J, 17½J | AO18: 19.5 | AP18: 15½J, 16J, 16½J, 17J, 17½J, 18J, 18½J | AQ18: 19.5 | AR18: 16½J, 17J, 17½J, 18J, 18½J, 19J, 19½J | AS18: 19.5 | AT18: 17½J, 18J, 18½J, 19J, 19½J
B19: 500 | C19: 494 | D19: 500 | E19: 84 | F19: 500 | G19: 1100 | H19: 1087.5 | I19: 84 | K19: TRA Min OD | L19: 0.95 | M19: 0.97 | N19: =20 -> 20 | T19: =25 -> 25 | U19: 635 | V19: 639.8
B20: 515 | C20: 508 | D20: 515 | E20: 85 | F20: 515 | G20: 1135 | H20: 1117.5 | I20: 85 | K20: TRA Min SW | L20: 0.95 | M20: 0.97 | N20: =20 -> 20 | T20: =26 -> 26 | U20: 660.4 | V20: 665.2 | W20: =T20*25.4+4.8 -> 665.2 | AG20: FOR ASPECT RATIO ≤ 45, > 40
B21: 530 | C21: 523 | D21: 530 | E21: 86 | F21: 530 | G21: 1170 | H21: 1152.5 | I21: 86 | T21: 27 | U21: 685.8 | V21: 690.6 | W21: =T21*25.4+4.8 -> 690.6 | AG21: NOMINAL | AH21: RIM | AI21: SECTION
B22: 545 | C22: 538 | D22: 545 | E22: 87 | F22: 545 | G22: 1200 | H22: 1185 | I22: 87 | T22: 28 | U22: 711.2 | V22: 716 | W22: =T22*25.4+4.8 -> 716 | AG22: SECT. WIDTH | AH22: WIDTH | AI22: WIDTH
B23: 560 | C23: 553 | D23: 560 | E23: 88 | F23: 560 | G23: 1235 | H23: 1217.5 | I23: 88 | K23: Profiles | O23: Graph Scaling | T23: 29 | U23: 736.6 | V23: 741.4 | W23: =T23*25.4+4.8 -> 741.4 | AG23: 7.5 | AH23: =MROUND(AG23*0.85,0.5) -> 6.5 | AI23: =AG23+(0.4*(AH23-(AG23*0.85))) -> 7.55
B24: 580 | C24: 570 | D24: 580 | E24: 89 | F24: 580 | G24: 1280 | H24: 1257.5 | I24: 89 | T24: 30 | U24: 762 | V24: 766.8 | W24: =T24*25.4+4.8 -> 766.8 | AG24: 8.5 | AH24: 7 | AI24: 8.41
B25: 600 | C25: 590 | D25: 600 | E25: 90 | F25: 600 | G25: 1325 | H25: 1302.5 | I25: 90 | K25: AR | L25: RTW (X) | M25: Trd Rad (Y) | O25: MAX SH | P25: X | Q25: Y | R25: Height | AG25: 9.5 | AH25: 8 | AI25: 9.47
B26: 615 | C26: 608 | D26: 615 | E26: 91 | F26: 615 | G26: 1355 | H26: 1340 | I26: 91 | K26: 30 - Custom | L26: =$Q$16/$O$16 -> 0.8333333333 | M26: =$R$16/$O$16 -> 4.333333333 | O26: 0 | P26: 100 | Q26: 120 | R26: 100 | AG26: 10.5 | AH26: 9 | AI26: 10.53
B27: 630 | C27: 623 | D27: 630 | E27: 92 | F27: 630 | G27: 1390 | H27: 1372.5 | I27: 92 | K27: 30 - TRA Design | L27: 0.9 | M27: =M28*0.8 -> 9.6 | O27: 75 | P27: 100 | Q27: 120 | R27: 100 | T27: Optional Rim Widths | X27: Min Rim Determination | AG27: 11.5 | AH27: 10 | AI27: 11.59
B28: 650 | C28: 640 | D28: 650 | E28: 93 | F28: 650 | G28: 1435 | H28: 1412.5 | I28: 93 | K28: 30 - TRA Max | L28: 0.92 | M28: =M29 -> 12 | O28: 100 | P28: 125 | Q28: 145 | R28: 125 | X28: ='DATA SHEET'!AA26 -> 8J, 8½J, 9J, 9½J, 10J, 10½J | AG28: 12.5 | AH28: 10.5 | AI28: 12.45
B29: 670 | C29: 660 | D29: 670 | E29: 94 | F29: 670 | G29: 1475 | H29: 1455 | I29: 94 | K29: 30 - TRA Max Envelope | L29: 0.98 | M29: 12 | O29: 125 | P29: 150 | Q29: 170 | R29: 150 | U29: No | V29: Meas. | X29: =MID(X$28,1,1) -> 8 | Y29: =IF(X29="½",12,X29*1) -> 8 | Z29: =ISNUMBER(Y29) -> TRUE | AA29: =IF(Z29=TRUE,Y29,"")&IF(Z30=TRUE,Y30,"")&IF(Z31=TRUE,Y31,"")&IF(Z32=TRUE,Y32,"") -> 8 | AB29: =IF(RIGHT(AA29,2)="15",".5","") ->  | AC29: =IF(LEFT(AA29)*1>1,LEFT(AA29,1)&AB29,LEFT(AA29,2)) -> 8 | AD29: =AC29*1 -> 8 | AE29: =IF(OR(RIGHT(AA29,2)="12",RIGHT(AA29,2)="50"),0.5,0) -> 0 | AG29: 13.5 | AH29: 11.5 | AI29: 13.51
B30: 690 | C30: 680 | D30: 690 | E30: 95 | F30: 690 | G30: 1520 | H30: 1497.5 | I30: 95 | K30: 30 - TRA Min OD | L30: 0.86 | M30: =M28*0.7 -> 8.4 | O30: 150 | P30: 175 | Q30: 195 | R30: 175 | U30: =MIN_RIM -> 8 | V30: =IF(U30="","",IF(R_Flange="B",FIXED(U30,2),TRUNC(U30,0)&IF(U30-TRUNC(U30,0)=0.5,"½",""))&R_Flange) -> 8J | X30: =MID(X$28,2,1) -> J | Y30: =IF(X30="½",12,X30*1) ->  | Z30: =ISNUMBER(Y30) -> FALSE | AG30: 14.5 | AH30: 12.5 | AI30: 14.57
B31: 710 | C31: 700 | D31: 710 | E31: 96 | F31: 710 | G31: 1565 | H31: 1542.5 | I31: 96 | K31: 30 - TRA Min SW | L31: 0.86 | M31: =M30 -> 8.4 | O31: 175 | P31: 200 | Q31: 220 | R31: 200 | U31: =IF(OR(U30="",U30=MAX_RIM),"",U30+0.5) -> 8.5 | V31: 8½J | X31: =MID(X$28,3,1) -> , | Z31: =ISNUMBER(Y31) -> FALSE | AG31: 15.5 | AH31: 13 | AI31: 15.43
B32: 730 | C32: 720 | D32: 730 | E32: 97 | F32: 730 | G32: 1610 | H32: 1587.5 | I32: 97 | K32: 35 - Custom | L32: =$Q$16/$O$16 -> 0.8333333333 | M32: =$R$16/$O$16 -> 4.333333333 | O32: 200 | P32: 225 | Q32: 245 | R32: 225 | U32: 9 | V32: 9J | X32: =MID(X$28,4,1) ->  | Z32: =ISNUMBER(Y32) -> FALSE | AG32: 16.5 | AH32: 14 | AI32: 16.49
B33: 750 | C33: 740 | D33: 750 | E33: 98 | F33: 750 | G33: 1655 | H33: 1632.5 | I33: 98 | K33: 35 - TRA Design | L33: =L27-0.02 -> 0.88 | M33: =M34*0.8 -> 9.6 | O33: 225 | P33: 250 | Q33: 270 | R33: 250 | U33: 9.5 | V33: 9½J | AG33: 17.5 | AH33: 15 | AI33: 17.55
B34: 775 | C34: 763 | D34: 775 | E34: 99 | F34: 775 | G34: 1710 | H34: 1682.5 | I34: 99 | K34: 35 - TRA Max | L34: =L28-0.02 -> 0.9 | M34: =M35 -> 12 | U34: 10 | V34: 10J | AG34: 18.5 | AH34: 15.5 | AI34: 18.41
B35: 800 | C35: 788 | D35: 800 | E35: 100 | F35: 800 | G35: 1765 | H35: 1737.5 | I35: 100 | K35: 35 - TRA Max Envelope | L35: 0.98 | M35: 12 | O35: MAX SW | P35: X | Q35: Y | R35: Height | U35: 10.5 | V35: 10½J | AG35: 19.5 | AH35: 16.5 | AI35: 19.47
B36: 825 | C36: 813 | D36: 825 | E36: 101 | F36: 825 | G36: 1820 | H36: 1792.5 | I36: 101 | K36: 35 - TRA Min OD | L36: =L30-0.02 -> 0.84 | M36: =M34*0.7 -> 8.4 | O36: 0 | P36: 100 | Q36: 120 | R36: 100 | X36: Max Rim Determination
B37: 850 | C37: 838 | D37: 850 | E37: 102 | F37: 850 | G37: 1875 | H37: 1847.5 | I37: 102 | K37: 35 - TRA Min SW | L37: =L31-0.02 -> 0.84 | M37: =M36 -> 8.4 | O37: 150 | P37: 100 | Q37: 120 | R37: 100 | X37: =RIGHT(X$28,5) -> 10½J | AG37: FOR ASPECT RATIO ≤ 40
B38: 875 | C38: 863 | D38: 875 | E38: 103 | F38: 875 | G38: 1930 | H38: 1902.5 | I38: 103 | K38: 40 - Custom | L38: =$Q$16/$O$16 -> 0.8333333333 | M38: =$R$16/$O$16 -> 4.333333333 | O38: 200 | P38: 125 | Q38: 145 | R38: 125 | T38: Min_Rim | U38: =AD29+AE29 -> 8 | X38: =MID(X$37,1,1) ->  | Y38: =IF(X38="½",12,X38*1) ->  | Z38: =ISNUMBER(Y38) -> FALSE | AA38: =IF(Z38=TRUE,Y38,"")&IF(Z39=TRUE,Y39,"")&IF(Z40=TRUE,Y40,"")&IF(Z41=TRUE,Y41,"")&IF(Z42=TRUE,Y42,"")&IF(Z43=TRUE,Y43,"") -> 1012 | AB38: =IF(RIGHT(AA38,2)="15",".5","") ->  | AC38: =IF(LEFT(AA38)*1>1,LEFT(AA38,1)&AB38,LEFT(AA38,2)) -> 10 | AD38: =AC38*1 -> 10 | AE38: =IF(OR(MID(AA38,2,2)="12",MID(AA38,3,2)="12",RIGHT(AA38,2)="50"),0.5,0) -> 0.5 | AG38: SECT. WIDTH | AH38: WIDTH | AI38: WIDTH
B39: 900 | C39: 888 | D39: 900 | E39: 104 | F39: 900 | G39: 1985 | H39: 1957.5 | I39: 104 | K39: 40 - TRA Design | L39: =L33-0.02 -> 0.86 | M39: =M40*0.8 -> 8.4 | O39: 250 | P39: 150 | Q39: 170 | R39: 150 | T39: Max_Rim | U39: =AD38+AE38 -> 10.5 | X39: =MID(X$37,2,1) -> 1 | Y39: =IF(X39="½",12,X39*1) -> 1 | Z39: =ISNUMBER(Y39) -> TRUE | AG39: 7.5 | AH39: =MROUND(AG39*0.9,0.5) -> 7 | AI39: =AG39+(0.4*(AH39-(AG39*0.9))) -> 7.6
B40: 925 | C40: 913 | D40: 925 | E40: 105 | F40: 925 | G40: 2040 | H40: 2012.5 | I40: 105 | K40: 40 - TRA Max | L40: =L34-0.02 -> 0.88 | M40: =M41 -> 10.5 | O40: 300 | P40: 175 | Q40: 195 | R40: 175 | T40: OPT Rim | U40: =IF(Contour="Meas.",0,CONCATENATE(LEFT(Contour,1),IF(ISNUMBER(MID(Contour,2,1)*1),MID(Contour,2,1),IF(MID(Contour,2,1)="½",".5","")),IF(ISNUMBER(MID(Contour,3,1)*1),MID(Contour,3,1),IF(MID(Contour,3,1)="½",".5","")))*IF(R_Flange="B",0.1,1)) -> 0 | V40: =IF(R_Flange="F",FIXED(O_Rim,2),TRUNC(O_Rim,0)&IF(O_Rim-TRUNC(O_Rim,0)=0.5,"½",""))&R_Flange -> 0J | W40: =TRA_Window!D6 -> Meas. | X40: =MID(X$37,3,1) -> 0 | Y40: =IF(X40="½",12,X40*1) -> 0 | Z40: =ISNUMBER(Y40) -> TRUE | AG40: 8.5 | AH40: 7.5 | AI40: 8.44
B41: 950 | C41: 938 | D41: 950 | E41: 106 | F41: 950 | G41: 2095 | H41: 2067.5 | I41: 106 | K41: 40 - TRA Max Envelope | L41: 0.98 | M41: 10.5 | O41: 350 | P41: 200 | Q41: 220 | R41: 200 | T41: Meas. Rim | U41: =M_Rim -> 9 | V41: =IF(R_Flange="B",FIXED(U41,2),TRUNC(U41,0)&IF(U41-TRUNC(U41,0)=0.5,"½",""))&R_Flange -> 9J | X41: =MID(X$37,4,1) -> ½ | Y41: =IF(X41="½",12,X41*1) -> 12 | Z41: =ISNUMBER(Y41) -> TRUE | AG41: 9.5 | AH41: 8.5 | AI41: 9.48
B42: 975 | C42: 963 | D42: 975 | E42: 107 | F42: 975 | G42: 2150 | H42: 2122.5 | I42: 107 | K42: 40 - TRA Min OD | L42: =L36-0.02 -> 0.82 | M42: =M40*0.7 -> 7.35 | O42: 400 | P42: 225 | Q42: 245 | R42: 225 | X42: =MID(X$37,5,1) -> J | Y42: =IF(X42="½",12,X42*1) ->  | Z42: =ISNUMBER(Y42) -> FALSE | AG42: 10.5 | AH42: 9.5 | AI42: 10.52
B43: 1000 | C43: 988 | D43: 1000 | E43: 108 | F43: 1000 | G43: 2205 | H43: 2177.5 | I43: 108 | K43: 40 - TRA Min SW | L43: =L37-0.02 -> 0.82 | M43: =M42 -> 7.35 | O43: 450 | P43: 250 | Q43: 270 | R43: 250 | X43: =MID(X$37,6,1) ->  | AG43: 11.5 | AH43: 10.5 | AI43: 11.56
B44: 1030 | C44: 1015 | D44: 1030 | E44: 109 | F44: 1030 | G44: 2270 | H44: 2237.5 | I44: 109 | K44: 45 - Custom | L44: =$Q$16/$O$16 -> 0.8333333333 | M44: =$R$16/$O$16 -> 4.333333333 | AG44: 12.5 | AH44: 11.5 | AI44: 12.6
B45: 1060 | C45: 1045 | D45: 1060 | E45: 110 | F45: 1060 | G45: 2335 | H45: 2302.5 | I45: 110 | K45: 45 - TRA Design | L45: =L39-0.02 -> 0.84 | M45: =M46*0.8 -> 7.44 | AG45: 13.5 | AH45: 12 | AI45: 13.44
B46: 1090 | C46: 1075 | D46: 1090 | E46: 111 | F46: 1090 | G46: 2405 | H46: 2370 | I46: 111 | K46: 45 - TRA Max | L46: =L40-0.02 -> 0.86 | M46: =M47 -> 9.3 | R46: HWY / TRAC. Tread | T46: OD | U46: SW | V46: RIM | W46: LR | Y46: Flags | AG46: 14.5 | AH46: 13 | AI46: 14.48
B47: 1120 | C47: 1105 | D47: 1120 | E47: 112 | F47: 1120 | G47: 2470 | H47: =AVERAGEA(G46:G47) -> 2437.5 | I47: 112 | K47: 45 - TRA Max Envelope | L47: 0.98 | M47: 9.3 | R47: DEEP TRAC. Tread | T47: 24 | U47: 7.5 | V47: 13 | W47: B | Y47: Incorrect profile | AA47: =OR(A<30,A>105) -> FALSE | AG47: 15.5 | AH47: 14 | AI47: 15.52
B48: 1150 | C48: 1135 | D48: 1150 | E48: 113 | F48: 1150 | G48: 2535 | H48: 2502.5 | I48: 113 | K48: 45 - TRA Min OD | L48: =L42-0.02 -> 0.8 | M48: =M46*0.7 -> 6.51 | T48: 25 | U48: 8.5 | V48: 14 | W48: C | Y48: Out of LI range | AA48: =ISERROR(VLOOKUP(1.57*0.425*(75^0.585)*(S.80^1.28)*(Dr+Sd)*(H/S.80)*0.4536,LI_Table,5)) -> FALSE | AG48: 16.5 | AH48: 15 | AI48: 16.56
B49: 1180 | C49: 1165 | D49: 1180 | E49: 114 | F49: 1180 | G49: 2600 | H49: 2567.5 | I49: 114 | K49: 45 - TRA Min SW | L49: =L43-0.02 -> 0.8 | M49: =M48 -> 6.51 | O49: Intermediate psi | P49: Intermediate kPa & corresponding psi per EDI 8-19 | T49: 26 | U49: 9.5 | V49: 15 | W49: D | Y49: Out of scope | AA49: =OR(Incorrect_Profile,Out_of_LI_Range) -> FALSE | AG49: 17.5 | AH49: 16 | AI49: 17.6
B50: 1215 | C50: 1198 | D50: 1215 | E50: 115 | F50: 1215 | G50: 2680 | H50: 2640 | I50: 115 | K50: 50 - Custom | L50: =$Q$16/$O$16 -> 0.8333333333 | M50: =$R$16/$O$16 -> 4.333333333 | T50: 27 | U50: 10.5 | V50: 16 | W50: E | AG50: 18.5 | AH50: 16.5 | AI50: 18.44
B51: 1250 | C51: 1233 | D51: 1250 | E51: 116 | F51: 1250 | G51: 2755 | H51: 2717.5 | I51: 116 | K51: 50 - TRA Design | L51: =L45-0.02 -> 0.82 | M51: =M52*0.8 -> 6.72 | T51: 28 | U51: 11.5 | V51: 17 | W51: F | AG51: 19.5 | AH51: 17.5 | AI51: 19.48
B52: 1285 | C52: 1268 | D52: 1285 | E52: 117 | F52: 1285 | G52: 2835 | H52: 2795 | I52: 117 | K52: 50 - TRA Max | L52: =L46-0.02 -> 0.84 | M52: =M53 -> 8.4 | O52: 26 | P52: 180 | Q52: 26 | T52: 29 | U52: 12.5 | V52: 18
B53: 1320 | C53: 1303 | D53: 1320 | E53: 118 | F53: 1320 | G53: 2910 | H53: 2872.5 | I53: 118 | K53: 50 - TRA Max Envelope | L53: 0.98 | M53: 8.4 | O53: 27 | P53: 190 | Q53: 28 | T53: 30 | U53: 13.5 | V53: 20
B54: 1360 | C54: 1340 | D54: 1360 | E54: 119 | F54: 1360 | G54: 3000 | H54: 2955 | I54: 119 | K54: 50 - TRA Min OD | L54: =L48-0.02 -> 0.78 | M54: =M52*0.7 -> 5.88 | O54: 28 | P54: 200 | Q54: 29 | T54: 31 | U54: 14.5 | V54: 22
B55: 1400 | C55: 1380 | D55: 1400 | E55: 120 | F55: 1400 | G55: 3085 | H55: 3042.5 | I55: 120 | K55: 50 - TRA Min SW | L55: =L49-0.02 -> 0.78 | M55: =M54 -> 5.88 | O55: 29 | P55: 220 | Q55: 32 | T55: 32 | U55: 15.5 | V55: 24
B56: 1450 | C56: 1425 | D56: 1450 | E56: 121 | F56: 1450 | G56: 3195 | H56: 3140 | I56: 121 | K56: 55 - Custom | L56: =$Q$16/$O$16 -> 0.8333333333 | M56: =$R$16/$O$16 -> 4.333333333 | O56: 31 | P56: 230 | Q56: 33 | T56: 33 | U56: 16.5 | V56: 26
B57: 1500 | C57: 1475 | D57: 1500 | E57: 122 | F57: 1500 | G57: 3305 | H57: 3250 | I57: 122 | K57: 55 - TRA Design | L57: =L51-0.02 -> 0.8 | M57: =M58*0.8 -> 6.12 | O57: 32 | P57: 240 | Q57: 35 | T57: 34 | U57: 17.5 | V57: 28
B58: 1550 | C58: 1525 | D58: 1550 | E58: 123 | F58: 1550 | G58: 3415 | H58: 3360 | I58: 123 | K58: 55 - TRA Max | L58: =L52-0.02 -> 0.82 | M58: =M59 -> 7.65 | O58: 33 | P58: 260 | Q58: 38 | T58: 35 | U58: 18.5
B59: 1600 | C59: 1575 | D59: 1600 | E59: 124 | F59: 1600 | G59: 3525 | H59: 3470 | I59: 124 | K59: 55 - TRA Max Envelope | L59: 0.98 | M59: 7.65 | O59: 34 | P59: 270 | Q59: 39 | T59: 36 | U59: 19.5
B60: 1650 | C60: 1625 | D60: 1650 | E60: 125 | F60: 1650 | G60: 3640 | H60: 3582.5 | I60: 125 | K60: 55 - TRA Min OD | L60: =L54-0.02 -> 0.76 | M60: =M58*0.7 -> 5.355 | O60: 36 | P60: 290 | Q60: 42 | T60: 37
B61: 1700 | C61: 1675 | D61: 1700 | E61: 126 | F61: 1700 | G61: 3750 | H61: 3695 | I61: 126 | K61: 55 - TRA Min SW | L61: =L55-0.02 -> 0.76 | M61: =M60 -> 5.355 | O61: 37 | P61: 300 | Q61: 44 | T61: 38
B62: 1750 | C62: 1725 | D62: 1750 | E62: 127 | F62: 1750 | G62: 3860 | H62: 3805 | I62: 127 | K62: 60 - Custom | L62: =$Q$16/$O$16 -> 0.8333333333 | M62: =$R$16/$O$16 -> 4.333333333 | O62: 38 | P62: 320 | Q62: 46 | T62: 39
B63: 1800 | C63: 1775 | D63: 1800 | E63: 128 | F63: 1800 | G63: 3970 | H63: 3915 | I63: 128 | K63: 60 - TRA Design | L63: =L57-0.02 -> 0.78 | M63: =M64*0.8 -> 5.04 | O63: 39 | P63: 330 | Q63: 48 | T63: 40
B64: 1850 | C64: 1825 | D64: 1850 | E64: 129 | F64: 1850 | G64: 4080 | H64: 4025 | I64: 129 | K64: 60 - TRA Max | L64: =L58-0.02 -> 0.8 | M64: =M65 -> 6.3 | O64: 41 | P64: 340 | Q64: 49 | T64: 41
B65: 1900 | C65: 1875 | D65: 1900 | E65: 130 | F65: 1900 | G65: 4190 | H65: 4135 | I65: 130 | K65: 60 - TRA Max Envelope | L65: 0.95 | M65: 6.3 | O65: 42 | P65: 360 | Q65: 52 | T65: 42
B66: 1950 | C66: 1925 | D66: 1950 | E66: 131 | F66: 1950 | G66: 4300 | H66: 4245 | I66: 131 | K66: 60 - TRA Min OD | L66: =L60-0.02 -> 0.74 | M66: =M64*0.7 -> 4.41 | O66: 43 | P66: 390 | Q66: 57 | T66: 43
B67: 2000 | C67: 1975 | D67: 2000 | E67: 132 | F67: 2000 | G67: 4410 | H67: 4355 | I67: 132 | K67: 60 - TRA Min SW | L67: =L61-0.02 -> 0.74 | M67: =M66 -> 4.41 | O67: 44 | P67: 400 | Q67: 58 | T67: 44
B68: 2060 | C68: 2030 | D68: 2060 | E68: 133 | F68: 2060 | G68: 4540 | H68: 4475 | I68: 133 | K68: 65 - Custom | L68: =$Q$16/$O$16 -> 0.8333333333 | M68: =$R$16/$O$16 -> 4.333333333 | O68: 46 | P68: 420 | Q68: 61 | T68: 45
B69: 2120 | C69: 2090 | D69: 2120 | E69: 134 | F69: 2120 | G69: 4675 | H69: 4607.5 | I69: 134 | K69: 65 - TRA Design | L69: =L63-0.02 -> 0.76 | M69: =M70*0.8 -> 4.64 | O69: 47 | P69: 440 | Q69: 64 | T69: 46
B70: 2180 | C70: 2150 | D70: 2180 | E70: 135 | F70: 2180 | G70: 4805 | H70: 4740 | I70: 135 | K70: 65 - TRA Max | L70: =L64-0.02 -> 0.78 | M70: =M71 -> 5.8 | O70: 48 | P70: 460 | Q70: 67 | T70: 47
B71: 2240 | C71: 2210 | D71: 2240 | E71: 136 | F71: 2240 | G71: 4940 | H71: 4872.5 | I71: 136 | K71: 65 - TRA Max Envelope | L71: 0.95 | M71: 5.8 | O71: 49 | P71: 470 | Q71: 68 | T71: 48
B72: 2300 | C72: 2270 | D72: 2300 | E72: 137 | F72: 2300 | G72: 5070 | H72: 5005 | I72: 137 | K72: 65 - TRA Min OD | L72: =L66-0.02 -> 0.72 | M72: =M70*0.7 -> 4.06 | O72: 51 | P72: 490 | Q72: 71
B73: 2360 | C73: 2330 | D73: 2360 | E73: 138 | F73: 2360 | G73: 5205 | H73: 5137.5 | I73: 138 | K73: 65 - TRA Min SW | L73: =L67-0.02 -> 0.72 | M73: =M72 -> 4.06 | O73: 52 | P73: 500 | Q73: 73
B74: 2430 | C74: 2395 | D74: 2430 | E74: 139 | F74: 2430 | G74: 5355 | H74: 5280 | I74: 139 | K74: 70 - Custom | L74: =$Q$16/$O$16 -> 0.8333333333 | M74: =$R$16/$O$16 -> 4.333333333 | O74: 53 | P74: 510 | Q74: 74
B75: 2500 | C75: 2465 | D75: 2500 | E75: 140 | F75: 2500 | G75: 5510 | H75: 5432.5 | I75: 140 | K75: 70 - TRA Design | L75: =L69-0.02 -> 0.74 | M75: =M76*0.8 -> 3.84 | O75: 54 | P75: 530 | Q75: 77
B76: 2575 | C76: 2538 | D76: 2575 | E76: 141 | F76: 2575 | G76: 5675 | H76: 5592.5 | I76: 141 | K76: 70 - TRA Max | L76: =L70-0.02 -> 0.76 | M76: =M77 -> 4.8 | O76: 56 | P76: 540 | Q76: 78
B77: 2650 | C77: 2613 | D77: 2650 | E77: 142 | F77: 2650 | G77: 5840 | H77: 5757.5 | I77: 142 | K77: 70 - TRA Max Envelope | L77: 0.93 | M77: 4.8 | O77: 57 | P77: =IF(SN>11.5,"",560) -> 560 | Q77: 81
B78: 2725 | C78: 2688 | D78: 2725 | E78: 143 | F78: 2725 | G78: 6005 | H78: 5922.5 | I78: 143 | K78: 70 - TRA Min OD | L78: =L72-0.02 -> 0.7 | M78: =M76*0.7 -> 3.36 | O78: 58 | P78: =IF(SN>11.5,"",580) -> 580 | Q78: 84
B79: 2800 | C79: 2763 | D79: 2800 | E79: 144 | F79: 2800 | G79: 6175 | H79: =AVERAGEA(G78:G79) -> 6090 | I79: 144 | K79: 70 - TRA Min SW | L79: =L73-0.02 -> 0.7 | M79: =M78 -> 3.36 | O79: 59 | P79: =IF(SN>11.5,"",590) -> 590 | Q79: 86
B80: 2900 | C80: 2850 | D80: 2900 | E80: 145 | F80: 2900 | G80: 6395 | H80: 6285 | I80: 145 | K80: 75 - Custom | L80: =$Q$16/$O$16 -> 0.8333333333 | M80: =$R$16/$O$16 -> 4.333333333 | O80: 61 | P80: =IF(SN>11.5,"",600) -> 600 | Q80: 87
B81: 3000 | C81: 2950 | D81: 3000 | E81: 146 | F81: 3000 | G81: 6610 | H81: 6502.5 | I81: 146 | K81: 75 - TRA Design | L81: =L75-0.02 -> 0.72 | M81: =M82*0.8 -> 3.16 | O81: 62 | P81: =IF(SN>11.5,"",610) -> 610 | Q81: 88
B82: 3075 | C82: 3038 | D82: 3075 | E82: 147 | F82: 3075 | G82: 6780 | H82: 6695 | I82: 147 | K82: 75 - TRA Max | L82: =L76-0.02 -> 0.74 | M82: =M83 -> 3.95 | O82: 63 | P82: =IF(SN>11.5,"",620) -> 620 | Q82: 90
B83: 3150 | C83: 3113 | D83: 3150 | E83: 148 | F83: 3150 | G83: 6940 | H83: 6860 | I83: 148 | K83: 75 - TRA Max Envelope | L83: 0.9 | M83: 3.95 | O83: 64 | P83: =IF(SN>11.5,"",640) -> 640 | Q83: 93 | AL83: 30 - Custom | AM83: 0.8 | AN83: 4.333333333
B84: 3250 | C84: 3200 | D84: 3250 | E84: 149 | F84: 3250 | G84: 7160 | H84: 7050 | I84: 149 | K84: 75 - TRA Min OD | L84: =L78-0.02 -> 0.68 | M84: =M82*0.7 -> 2.765 | O84: 66 | P84: Current | AL84: 30 - TRA Design | AM84: 0.9 | AN84: 9.6
B85: 3350 | C85: 3300 | D85: 3350 | E85: 150 | F85: 3350 | G85: 7390 | H85: 7275 | I85: 150 | K85: 75 - TRA Min SW | L85: =L79-0.02 -> 0.68 | M85: =M84 -> 2.765 | O85: 67 | P85: ='DATA SHEET'!K31 -> 0 | Q85: =VLOOKUP(P85,P52:Q83,2,FALSE) ->  | AL85: 30 - TRA Max | AM85: 0.92 | AN85: 12
B86: 3450 | C86: 3400 | D86: 3450 | E86: 151 | F86: 3450 | G86: 7610 | H86: 7500 | I86: 151 | K86: 80 - Custom | L86: =$Q$16/$O$16 -> 0.8333333333 | M86: =$R$16/$O$16 -> 4.333333333 | O86: 68 | AL86: 30 - TRA Max Envelope | AM86: 0.98 | AN86: 12
B87: 3550 | C87: 3500 | D87: 3550 | E87: 152 | F87: 3550 | G87: 7830 | H87: 7720 | I87: 152 | K87: 80 - TRA Design | L87: =L81-0.02 -> 0.7 | M87: =M88*0.8 -> 3 | O87: 69 | AL87: 30 - TRA Min OD | AM87: 0.86 | AN87: 8.4
B88: 3650 | C88: 3600 | D88: 3650 | E88: 153 | F88: 3650 | G88: 8050 | H88: 7940 | I88: 153 | K88: 80 - TRA Max | L88: =L82-0.02 -> 0.72 | M88: =M89 -> 3.75 | O88: 71 | AL88: 30 - TRA Min SW | AM88: 0.86 | AN88: 8.4
B89: 3750 | C89: 3700 | D89: 3750 | E89: 154 | F89: 3750 | G89: 8270 | H89: 8160 | I89: 154 | K89: 80 - TRA Max Envelope | L89: 0.9 | M89: 3.75 | O89: 72 | AL89: 35 - Custom | AM89: 0.8 | AN89: 4.333333333
B90: 3875 | C90: 3813 | D90: 3875 | E90: 155 | F90: 3875 | G90: 8540 | H90: 8405 | I90: 155 | K90: 80 - TRA Min OD | L90: =L84-0.02 -> 0.66 | M90: =M88*0.7 -> 2.625 | O90: 73 | AL90: 35 - TRA Design | AM90: 0.88 | AN90: 9.6
B91: 4000 | C91: 3938 | D91: 4000 | E91: 156 | F91: 4000 | G91: 8820 | H91: 8680 | I91: 156 | K91: 80 - TRA Min SW | L91: =L85-0.02 -> 0.66 | M91: =M90 -> 2.625 | O91: 74 | AL91: 35 - TRA Max | AM91: 0.9 | AN91: 12
B92: 4125 | C92: 4063 | D92: 4125 | E92: 157 | F92: 4125 | G92: 9090 | H92: 8955 | I92: 157 | K92: 85 - Custom | L92: =$Q$16/$O$16 -> 0.8333333333 | M92: =$R$16/$O$16 -> 4.333333333 | O92: 76 | AL92: 35 - TRA Max Envelope | AM92: 0.98 | AN92: 12
B93: 4250 | C93: 4188 | D93: 4250 | E93: 158 | F93: 4250 | G93: 9370 | H93: 9230 | I93: 158 | K93: 85 - TRA Design | L93: =L87-0.02 -> 0.68 | M93: =M94*0.8 -> 3 | O93: 77 | AL93: 35 - TRA Min OD | AM93: 0.84 | AN93: 8.4
B94: 4375 | C94: 4313 | D94: 4375 | E94: 159 | F94: 4375 | G94: 9650 | H94: 9510 | I94: 159 | K94: 85 - TRA Max | L94: =L88-0.02 -> 0.7 | M94: =M95 -> 3.75 | O94: 78 | AL94: 35 - TRA Min SW | AM94: 0.84 | AN94: 8.4
B95: 4500 | C95: 4438 | D95: 4500 | E95: 160 | F95: 4500 | G95: 9920 | H95: 9785 | I95: 160 | K95: 85 - TRA Max Envelope | L95: 0.9 | M95: 3.75 | O95: 79 | AL95: 40 - Custom | AM95: 0.8 | AN95: 4.333333333
B96: 4625 | C96: 4563 | D96: 4625 | E96: 161 | F96: 4625 | G96: 10200 | H96: 10060 | I96: 161 | K96: 85 - TRA Min OD | L96: =L90-0.02 -> 0.64 | M96: =M94*0.7 -> 2.625 | O96: =IF(SN>11.5,"",81) -> 81 | AL96: 40 - TRA Design | AM96: 0.86 | AN96: 8.4
B97: 4750 | C97: 4688 | D97: 4750 | E97: 162 | F97: 4750 | G97: 10500 | H97: 10350 | I97: 162 | K97: 85 - TRA Min SW | L97: =L91-0.02 -> 0.64 | M97: =M96 -> 2.625 | O97: =IF(SN>11.5,"",82) -> 82 | AL97: 40 - TRA Max | AM97: 0.88 | AN97: 10.5
B98: 4875 | C98: 4813 | D98: 4875 | E98: 163 | F98: 4875 | G98: 10700 | H98: 10600 | I98: 163 | K98: 90 - Custom | L98: =$Q$16/$O$16 -> 0.8333333333 | M98: =$R$16/$O$16 -> 4.333333333 | O98: =IF(SN>11.5,"",83) -> 83 | AL98: 40 - TRA Max Envelope | AM98: 0.98 | AN98: 10.5
B99: 5000 | C99: 4938 | D99: 5000 | E99: 164 | F99: 5000 | G99: 11000 | H99: 10850 | I99: 164 | K99: 90 - TRA Design | L99: =L93-0.02 -> 0.66 | M99: =M100*0.8 -> 3 | O99: =IF(SN>11.5,"",84) -> 84 | AL99: 40 - TRA Min OD | AM99: 0.82 | AN99: 7.35
B100: 5150 | C100: 5075 | D100: 5150 | E100: 165 | F100: 5150 | G100: 11400 | H100: 11200 | I100: 165 | K100: 90 - TRA Max | L100: =L94-0.02 -> 0.68 | M100: =M101 -> 3.75 | O100: =IF(SN>11.5,"",85) -> 85 | AL100: 40 - TRA Min SW | AM100: 0.82 | AN100: 7.35
B101: 5300 | C101: 5225 | D101: 5300 | E101: 166 | F101: 5300 | G101: 11700 | H101: 11550 | I101: 166 | K101: 90 - TRA Max Envelope | L101: 0.9 | M101: 3.75 | O101: =IF(SN>11.5,"",86) -> 86 | AL101: 45 - Custom | AM101: 0.8333333333 | AN101: 4.333333333
B102: 5450 | C102: 5375 | D102: 5450 | E102: 167 | F102: 5450 | G102: 12000 | H102: 11850 | I102: 167 | K102: 90 - TRA Min OD | L102: =L96-0.02 -> 0.62 | M102: =M100*0.7 -> 2.625 | O102: =IF(SN>11.5,"",87) -> 87 | AL102: 45 - TRA Design | AM102: 0.84 | AN102: 7.44
B103: 5600 | C103: 5525 | D103: 5600 | E103: 168 | F103: 5600 | G103: 12300 | H103: 12150 | I103: 168 | K103: 90 - TRA Min SW | L103: =L97-0.02 -> 0.62 | M103: =M102 -> 2.625 | O103: =IF(SN>11.5,"",88) -> 88 | AL103: 45 - TRA Max | AM103: 0.86 | AN103: 9.3
B104: 5800 | C104: 5700 | D104: 5800 | E104: 169 | F104: 5800 | G104: 12800 | H104: 12550 | I104: 169 | K104: 95 - Custom | L104: =$Q$16/$O$16 -> 0.8333333333 | M104: =$R$16/$O$16 -> 4.333333333 | O104: =IF(SN>11.5,"",89) -> 89 | AL104: 45 - TRA Max Envelope | AM104: 0.98 | AN104: 9.3
B105: 6000 | C105: 5900 | D105: 6000 | E105: 170 | F105: 6000 | G105: 13200 | H105: 13000 | I105: 170 | K105: 95 - TRA Design | L105: =L99-0.02 -> 0.64 | M105: =M106*0.8 -> 3 | O105: =IF(SN>11.5,"",90) -> 90 | AL105: 45 - TRA Min OD | AM105: 0.8 | AN105: 6.51
K106: 95 - TRA Max | L106: =L100-0.02 -> 0.66 | M106: =M107 -> 3.75 | O106: =IF(SN>11.5,"",91) -> 91 | AL106: 45 - TRA Min SW | AM106: 0.8 | AN106: 6.51
K107: 95 - TRA Max Envelope | L107: 0.9 | M107: 3.75 | O107: =IF(SN>11.5,"",92) -> 92 | AL107: 50 - Custom | AM107: 0.8333333333 | AN107: 4.333333333
K108: 95 - TRA Min OD | L108: =L102-0.02 -> 0.6 | M108: =M107*0.7 -> 2.625 | O108: =IF(SN>11.5,"",93) -> 93 | AL108: 50 - TRA Design | AM108: 0.82 | AN108: 6.72
K109: 95 - TRA Min SW | L109: =L103-0.02 -> 0.6 | M109: =M108 -> 2.625 | O109: =IF(SN>11.5,"",94) -> 94 | AL109: 50 - TRA Max | AM109: 0.84 | AN109: 8.4
K110: 100 - Custom | L110: =$Q$16/$O$16 -> 0.8333333333 | M110: =$R$16/$O$16 -> 4.333333333 | AL110: 50 - TRA Max Envelope | AM110: 0.98 | AN110: 8.4
K111: 100 - TRA Design | L111: =L105-0.02 -> 0.62 | M111: =M112*0.8 -> 3 | AL111: 50 - TRA Min OD | AM111: 0.78 | AN111: 5.88
K112: 100 - TRA Max | L112: =L106-0.02 -> 0.64 | M112: =M113 -> 3.75 | AL112: 50 - TRA Min SW | AM112: 0.78 | AN112: 5.88
K113: 100 - TRA Max Envelope | L113: 0.9 | M113: 3.75 | AL113: 55 - Custom | AM113: 0.8333333333 | AN113: 4.333333333
K114: 100 - TRA Min OD | L114: =L108-0.02 -> 0.58 | M114: =M113*0.7 -> 2.625 | AL114: 55 - TRA Design | AM114: 0.8 | AN114: 6.12
K115: 100 - TRA Min SW | L115: =L109-0.02 -> 0.58 | M115: =M114 -> 2.625 | AL115: 55 - TRA Max | AM115: 0.82 | AN115: 7.65
K116: 105 - Custom | L116: =$Q$16/$O$16 -> 0.8333333333 | M116: =$R$16/$O$16 -> 4.333333333 | AL116: 55 - TRA Max Envelope | AM116: 0.98 | AN116: 7.65
K117: 105 - TRA Design | L117: =L111-0.02 -> 0.6 | M117: =M118*0.8 -> 3 | AL117: 55 - TRA Min OD | AM117: 0.76 | AN117: 5.355
K118: 105 - TRA Max | L118: =L112-0.02 -> 0.62 | M118: =M119 -> 3.75 | AL118: 55 - TRA Min SW | AM118: 0.76 | AN118: 5.355
K119: 105 - TRA Max Envelope | L119: 0.9 | M119: 3.75 | AL119: 60 - Custom | AM119: 0.8333333333 | AN119: 4.333333333
K120: 105 - TRA Min OD | L120: =L114-0.02 -> 0.56 | M120: =M119*0.7 -> 2.625 | AL120: 60 - TRA Design | AM120: 0.78 | AN120: 5.04
K121: 105 - TRA Min SW | L121: =L115-0.02 -> 0.56 | M121: =M120 -> 2.625 | AL121: 60 - TRA Max | AM121: 0.8 | AN121: 6.3
AL122: 60 - TRA Max Envelope | AM122: 0.95 | AN122: 6.3
AL123: 60 - TRA Min OD | AM123: 0.74 | AN123: 4.41
AL124: 60 - TRA Min SW | AM124: 0.74 | AN124: 4.41
AL125: 65 - Custom | AM125: 0.8333333333 | AN125: 4.333333333
AL126: 65 - TRA Design | AM126: 0.76 | AN126: 4.64
AL127: 65 - TRA Max | AM127: 0.78 | AN127: 5.8
AL128: 65 - TRA Max Envelope | AM128: 0.95 | AN128: 5.8
AL129: 65 - TRA Min OD | AM129: 0.72 | AN129: 4.06
AL130: 65 - TRA Min SW | AM130: 0.72 | AN130: 4.06
AL131: 70 - Custom | AM131: 0.8333333333 | AN131: 4.333333333
AL132: 70 - TRA Design | AM132: 0.74 | AN132: 3.84
AL133: 70 - TRA Max | AM133: 0.76 | AN133: 4.8
AL134: 70 - TRA Max Envelope | AM134: 0.93 | AN134: 4.8
AL135: 70 - TRA Min OD | AM135: 0.7 | AN135: 3.36
AL136: 70 - TRA Min SW | AM136: 0.7 | AN136: 3.36
AL137: 75 - Custom | AM137: 0.8333333333 | AN137: 4.333333333
AL138: 75 - TRA Design | AM138: 0.72 | AN138: 3.16
AL139: 75 - TRA Max | AM139: 0.74 | AN139: 3.95
AL140: 75 - TRA Max Envelope | AM140: 0.9 | AN140: 3.95
AL141: 75 - TRA Min OD | AM141: 0.68 | AN141: 2.765
AL142: 75 - TRA Min SW | AM142: 0.68 | AN142: 2.765
AL143: 80 - Custom | AM143: 0.8333333333 | AN143: 4.333333333
AL144: 80 - TRA Design | AM144: 0.7 | AN144: 3
AL145: 80 - TRA Max | AM145: 0.72 | AN145: 3.75
AL146: 80 - TRA Max Envelope | AM146: 0.9 | AN146: 3.75
AL147: 80 - TRA Min OD | AM147: 0.66 | AN147: 2.625
AL148: 80 - TRA Min SW | AM148: 0.66 | AN148: 2.625
AL149: 85 - Custom | AM149: 0.8333333333 | AN149: 4.333333333
AL150: 85 - TRA Design | AM150: 0.68 | AN150: 3
AL151: 85 - TRA Max | AM151: 0.7 | AN151: 3.75
AL152: 85 - TRA Max Envelope | AM152: 0.9 | AN152: 3.75
AL153: 85 - TRA Min OD | AM153: 0.64 | AN153: 2.625
AL154: 85 - TRA Min SW | AM154: 0.64 | AN154: 2.625
AL155: 90 - Custom | AM155: 0.8333333333 | AN155: 4.333333333
AL156: 90 - TRA Design | AM156: 0.66 | AN156: 3
AL157: 90 - TRA Max | AM157: 0.68 | AN157: 3.75
AL158: 90 - TRA Max Envelope | AM158: 0.9 | AN158: 3.75
AL159: 90 - TRA Min OD | AM159: 0.62 | AN159: 2.625
AL160: 90 - TRA Min SW | AM160: 0.62 | AN160: 2.625
AL161: 95 - Custom | AM161: 0.8333333333 | AN161: 4.333333333
AL162: 95 - TRA Design | AM162: 0.64 | AN162: 3
AL163: 95 - TRA Max | AM163: 0.66 | AN163: 3.75
AL164: 95 - TRA Max Envelope | AM164: 0.9 | AN164: 3.75
AL165: 95 - TRA Min OD | AM165: 0.6 | AN165: 2.625
AL166: 95 - TRA Min SW | AM166: 0.6 | AN166: 2.625
AL167: 100 - Custom | AM167: 0.8333333333 | AN167: 4.333333333
AL168: 100 - TRA Design | AM168: 0.62 | AN168: 3
AL169: 100 - TRA Max | AM169: 0.64 | AN169: 3.75
AL170: 100 - TRA Max Envelope | AM170: 0.9 | AN170: 3.75
AL171: 100 - TRA Min OD | AM171: 0.58 | AN171: 2.625
AL172: 100 - TRA Min SW | AM172: 0.58 | AN172: 2.625
AL173: 105 - Custom | AM173: 0.8333333333 | AN173: 4.333333333
AL174: 105 - TRA Design | AM174: 0.6 | AN174: 3
AL175: 105 - TRA Max | AM175: 0.62 | AN175: 3.75
AL176: 105 - TRA Max Envelope | AM176: 0.9 | AN176: 3.75
AL177: 105 - TRA Min OD | AM177: 0.56 | AN177: 2.625
AL178: 105 - TRA Min SW | AM178: 0.56 | AN178: 2.625

Sheet STATUS (hidden)
A1: YB DATE: | B1: 2026 | C1: EDI DATE: | D1: 2025-10-29 | E1: Last row used: | F1: =MAX(IF(ISBLANK(A:A),0,ROW(A:A))) -> 123
A2: INPUT SIZE | B2: STATUS | F2: EXCEPTIONS
A3: =Do_nom&"x"&SN&"0R"&Rim_Code&"LT" -> 33x11.50R22LT | B3: =IF(ISNA(VLOOKUP(A3,A6:D2501,2,FALSE)),"N/A",VLOOKUP(A3,A6:D2501,2,FALSE)) -> N/A | C3: =IF(ISNA(VLOOKUP(A3,A6:D2501,3,FALSE)),"Not Standardized",VLOOKUP(A3,A6:D2501,3,FALSE)) -> Not Standardized | D3: =IF(ISNA(VLOOKUP(A3,A6:D2501,4,FALSE)),"N/A",IF(LEFT(VLOOKUP(A3,A6:D2501,4,FALSE),9)="YEAR BOOK",B1&" "&VLOOKUP(A3,A6:D2501,4,FALSE),IF(VLOOKUP(A3,A6:D2501,4,FALSE)="EDI",VLOOKUP(A3,A6:D2501,4,FALSE)&" ("&TEXT(D1,"mm/dd/yy")&")"))) -> N/A | F3: =IF(ISNA(VLOOKUP($A3,$A6:$AY2501,COLUMN(F2),FALSE)),"",VLOOKUP($A3,$A6:$AY2501,COLUMN(F2),FALSE)) -> 
A4: ='DATA SHEET'!J6 -> F | B4: =IF(ISERROR(FIND(A4,B3)),"no", "yes") -> no | C4: <-LR standard ? / line-> | D4: =MATCH(A3,A6:A1000,0)+5 ->  | E4: EXCEPTIONS / | F4: 170 | H4: 210 | J4: 250 | L4: 280 | N4: 310 | P4: 350 | R4: 380 | T4: 410 | V4: 450 | X4: 480 | Z4: 520 | AB4: 550 | AD4: 650
A5: TIRE SIZE | B5: L R | C5: STATUS | D5: LOCATION | E5: COMMENT | F5: kg | G5: lb | H5: kg | I5: lb | J5: kg | K5: lb | L5: kg | M5: lb | N5: kg | O5: lb | P5: kg | Q5: lb | R5: kg | S5: lb | T5: kg | U5: lb | V5: kg | W5: lb | X5: kg | Y5: lb | Z5: kg | AA5: lb | AB5: kg | AC5: lb | AD5: kg | AE5: lb
A6: 27x8.50R14LT | B6: B, C | C6: TRA STANDARD | D6: YEAR BOOK
A7: 29x9.50R15LT | B7: B, C | C7: TRA STANDARD | D7: YEAR BOOK
A8: 30x9.50R14LT | B8: B | C8: TRA STANDARD | D8: YEAR BOOK
A9: 30x9.50R15LT | B9: B, C | C9: TRA STANDARD | D9: YEAR BOOK
A10: 31x10.50R15LT | B10: B, C | C10: TRA STANDARD | D10: YEAR BOOK
A11: 31x11.50R15LT | B11: B, C | C11: TRA STANDARD | D11: YEAR BOOK
A12: 31x12.50R15LT | B12: C | C12: TRA STANDARD | D12: YEAR BOOK
A13: 32x11.50R15LT | B13: B, C | C13: TRA STANDARD | D13: YEAR BOOK
A14: 32x9.50R15LT | B14: B | C14: TRA STANDARD | D14: YEAR BOOK
A15: 33x10.50R15LT | B15: B, C | C15: TRA STANDARD | D15: YEAR BOOK
A16: 33x10.50R17LT | B16: D, E | C16: TRA STANDARD | D16: YEAR BOOK | E16: Old 121 LI cap | X16: 1365 | Y16: 3005 | Z16: 1405 | AA16: 3100 | AB16: 1450 | AC16: 3195 | AD16: 1450 | AE16: 3195
A17: 33x10.50R18LT | B17: D, E | C17: TRA STANDARD | D17: YEAR BOOK
A18: 33x11.50R17LT | B18: D | C18: TRA STANDARD | D18: YEAR BOOK
A19: 33x11.50R18LT | B19: E | C19: TRA STANDARD | D19: YEAR BOOK
A20: 33x11.50R20LT | B20: E | C20: TRA STANDARD | D20: YEAR BOOK
A21: 33x12.50R15LT | B21: B, C | C21: TRA STANDARD | D21: YEAR BOOK
A22: 33x12.50R17LT | B22: C, D, E, F | C22: TRA STANDARD | D22: YEAR BOOK
A23: 33x12.50R18LT | B23: E, F | C23: TRA STANDARD | D23: YEAR BOOK
A24: 33x12.50R20LT | B24: E, F | C24: TRA STANDARD | D24: YEAR BOOK
A25: 33x12.50R22LT | B25: E, F | C25: TRA STANDARD | D25: YEAR BOOK | E25: LRF different loads | X25: 1080 | Y25: 2385 | Z25: 1130 | AA25: 2490 | AB25: 1180 | AC25: 2600
A26: 33x12.50R24LT | B26: E, F | C26: TRA STANDARD | D26: YEAR BOOK
A27: 33x13.50R15LT | B27: C | C27: TRA STANDARD | D27: YEAR BOOK
A28: 33x13.50R20LT | B28: F | C28: TRA STANDARD | D28: YEAR BOOK
A29: 33x15.50R15LT | B29: C | C29: TRA STANDARD | D29: YEAR BOOK
A30: 33x9.50R15LT | B30: B, C | C30: TRA STANDARD | D30: YEAR BOOK | E30: LRC different loads | L30: 985 | M30: 2170 | N30: 1065 | O30: 2345 | P30: 1150 | Q30: 2535
A31: 34x10.50R17LT | B31: D, E | C31: TRA STANDARD | D31: YEAR BOOK | E31: Old 121 LI cap | X31: 1415 | Y31: 3120 | Z31: 1435 | AA31: 3160 | AB31: 1450 | AC31: 3195 | AD31: 1450 | AE31: 3195
A32: 34x11.50R20LT | B32: E | C32: TRA STANDARD | D32: YEAR BOOK
A33: 34x12.50R17LT | B33: E | C33: DESIGN GUIDE | D33: EDI | E33: Old 121 LI cap | R33: 1340 | S33: 2955 | T33: 1395 | U33: 3075 | V33: 1450 | W33: 3195 | X33: 1415 | Y33: 3120 | Z33: 1435 | AA33: 3160 | AB33: 1450 | AC33: 3195
A34: 34x12.50R18LT | B34: E | C34: TRA STANDARD | D34: YEAR BOOK
A35: 35x10.50R17LT | B35: C, D, E | C35: TRA STANDARD | D35: YEAR BOOK | E35: Old 121 LI cap | R35: 1340 | S35: 2955 | T35: 1395 | U35: 3075 | V35: 1450 | W35: 3195 | X35: 1450 | Y35: 3195 | Z35: 1450 | AA35: 3195 | AB35: 1450 | AC35: 3195 | AD35: 1450 | AE35: 3195
A36: 35x11.50R16LT | B36: D | C36: TRA STANDARD | D36: YEAR BOOK
A37: 35x11.50R17LT | B37: C, E | C37: TRA STANDARD | D37: YEAR BOOK
A38: 35x11.50R18LT | B38: C, E | C38: TRA STANDARD | D38: YEAR BOOK | E38: LRC added in 2023 YB
A39: 35x11.50R20LT | B39: D, E | C39: TRA STANDARD | D39: YEAR BOOK
A40: 35x12.50R15LT | B40: C | C40: TRA STANDARD | D40: YEAR BOOK
A41: 35x12.50R17LT | B41: C, D, E, F | C41: TRA STANDARD | D41: YEAR BOOK
A42: 35x12.50R18LT | B42: D, E, F | C42: TRA STANDARD | D42: YEAR BOOK
A43: 35x12.50R20LT | B43: D, E, F | C43: TRA STANDARD | D43: YEAR BOOK
A44: 35x12.50R22LT | B44: E, F | C44: TRA STANDARD | D44: YEAR BOOK
A45: 35x12.50R24LT | B45: E, F | C45: TRA STANDARD | D45: YEAR BOOK
A46: 35x13.50R15LT | B46: C | C46: TRA STANDARD | D46: YEAR BOOK
A47: 35x13.50R18LT | B47: D | C47: TRA STANDARD | D47: YEAR BOOK
A48: 35x13.50R20LT | B48: E, F | C48: TRA STANDARD | D48: YEAR BOOK
A49: 35x13.50R24LT | B49: E, F | C49: TRA STANDARD | D49: YEAR BOOK | E49: LRE different loads | R49: 995 | S49: 2190 | T49: 1050 | U49: 2315 | V49: 1120 | W49: 2470
A50: 35x14.50R15LT | B50: C | C50: TRA STANDARD | D50: YEAR BOOK
A51: 35x15.50R20LT | B51: F | C51: TRA STANDARD | D51: YEAR BOOK
A52: 35x15.50R22LT | B52: F | C52: TRA STANDARD | D52: YEAR BOOK
A53: 35x15.50R24LT | B53: F | C53: TRA STANDARD | D53: YEAR BOOK
A54: 35x9.50R15LT | B54: B | C54: TRA STANDARD | D54: YEAR BOOK
A55: 36x13.50R18LT | B55: D | C55: TRA STANDARD | D55: YEAR BOOK
A56: 36x14.50R15LT | B56: B, C | C56: TRA STANDARD | D56: YEAR BOOK
A57: 36x14.50R17LT | B57: D | C57: TRA STANDARD | D57: YEAR BOOK | E57: Old 121 LI cap | L57: 1315 | M57: 2900 | N57: 1385 | O57: 3050 | P57: 1450 | Q57: 3195 | R57: 1450 | S57: 3195 | T57: 1450 | U57: 3195 | V57: 1450 | W57: 3195 | X57: 1450 | Y57: 3195 | Z57: 1450 | AA57: 3195 | AB57: 1450 | AC57: 3195
A58: 36x14.50R18LT | B58: D | C58: TRA STANDARD | D58: YEAR BOOK
A59: 36x15.50R15LT | B59: C | C59: TRA STANDARD | D59: YEAR BOOK
A60: 36x15.50R20LT | B60: E | C60: TRA STANDARD | D60: YEAR BOOK
A61: 37x11.50R17LT | B61: C, D | C61: TRA STANDARD | D61: YEAR BOOK
A62: 37x11.50R18LT | B62: D, E | C62: TRA STANDARD | D62: YEAR BOOK
A63: 37x11.50R20LT | B63: E | C63: TRA STANDARD | D63: YEAR BOOK
A64: 37x12.50R15LT | B64: B, C | C64: TRA STANDARD | D64: YEAR BOOK
A65: 37x12.50R17LT | B65: C, D, E, F | C65: TRA STANDARD | D65: YEAR BOOK
A66: 37x12.50R18LT | B66: C, D, E, F | C66: TRA STANDARD | D66: YEAR BOOK
A67: 37x12.50R20LT | B67: D, E, F | C67: TRA STANDARD | D67: YEAR BOOK
A68: 37x12.50R22LT | B68: E, F | C68: TRA STANDARD | D68: YEAR BOOK
A69: 37x13.50R15LT | B69: C | C69: TRA STANDARD | D69: YEAR BOOK
A70: 37x13.50R17LT | B70: D, E, F | C70: TRA STANDARD | D70: YEAR BOOK | E70: LRF added to the 2024 YB
A71: 37x13.50R18LT | B71: D, E, F | C71: TRA STANDARD | D71: YEAR BOOK
A72: 37x13.50R20LT | B72: D, E, F | C72: TRA STANDARD | D72: YEAR BOOK
A73: 37x13.50R22LT | B73: D, E, F | C73: TRA STANDARD | D73: YEAR BOOK
A74: 37x13.50R24LT | B74: E, F | C74: TRA STANDARD | D74: YEAR BOOK
A75: 37x13.50R26LT | B75: E | C75: TRA STANDARD | D75: YEAR BOOK
A76: 37x14.50R15LT | B76: B, C | C76: TRA STANDARD | D76: YEAR BOOK (B - EDI)
A77: 37x14.50R20LT | B77: E | C77: TRA STANDARD | D77: YEAR BOOK
A78: 37x14.50R24LT | B78: F | C78: TRA STANDARD | D78: YEAR BOOK | E78: LRF different loads | X78: 1495 | Y78: 3295 | Z78: 1560 | AA78: 3440 | AB78: 1650 | AC78: 3640
A79: 38x12.50R17LT | B79: C, D | C79: TRA STANDARD | D79: YEAR BOOK | E79: LRD added in 2025 YB
A80: 38x13.50R17LT | B80: C, D, E | C80: TRA STANDARD | D80: YEAR BOOK
A81: 38x13.50R20LT | B81: E | C81: TRA STANDARD | D81: YEAR BOOK
A82: 38x13.50R22LT | B82: E, F | C82: TRA STANDARD | D82: YEAR BOOK
A83: 38x13.50R24LT | B83: E, F | C83: TRA STANDARD | D83: YEAR BOOK
A84: 38x14.50R17LT | B84: D | C84: TRA STANDARD | D84: YEAR BOOK
A85: 38x14.50R18LT | B85: D | C85: TRA STANDARD | D85: YEAR BOOK
A86: 38x14.50R20LT | B86: D | C86: TRA STANDARD | D86: YEAR BOOK
A87: 38x15.50R15LT | B87: C | C87: TRA STANDARD | D87: YEAR BOOK
A88: 38x15.50R17LT | B88: C | C88: TRA STANDARD | D88: YEAR BOOK
A89: 38x15.50R18LT | B89: D | C89: TRA STANDARD | D89: YEAR BOOK
A90: 38x15.50R20LT | B90: D, E | C90: TRA STANDARD | D90: YEAR BOOK
A91: 38x15.50R22LT | B91: E | C91: TRA STANDARD | D91: YEAR BOOK
A92: 38x15.50R24LT | B92: F | C92: TRA STANDARD | D92: YEAR BOOK
A93: 39x13.50R17LT | B93: C, D | C93: TRA STANDARD | D93: YEAR BOOK | E93: Old 121 LI cap | L93: 1450 | M93: 3195 | N93: 1450 | O93: 3195 | P93: 1450 | Q93: 3195 | R93: 1450 | S93: 3195 | T93: 1450 | U93: 3195 | V93: 1450 | W93: 3195 | X93: 1450 | Y93: 3195 | Z93: 1450 | AA93: 3195 | AB93: 1450 | AC93: 3195
A94: 40x13.50R17LT | B94: B, C, D | C94: TRA STANDARD | D94: YEAR BOOK
A95: 40x13.50R20LT | B95: D, E, F | C95: TRA STANDARD | D95: YEAR BOOK | E95: LRF added to the 2024 YB
A96: 40x14.50R17LT | B96: C | C96: TRA STANDARD | D96: YEAR BOOK | E96: Old 121 LI cap | H96: 1350 | I96: 2975 | J96: 1450 | K96: 3195 | L96: 1450 | M96: 3195 | N96: 1450 | O96: 3195 | P96: 1450 | Q96: 3195 | R96: 1450 | S96: 3195 | T96: 1450 | U96: 3195 | V96: 1450 | W96: 3195 | X96: 1450 | Y96: 3195 | Z96: 1450 | AA96: 3195 | AB96: 1450 | AC96: 3195
A97: 40x14.50R18LT | B97: C | C97: TRA STANDARD | D97: YEAR BOOK
A98: 40x14.50R20LT | B98: C, D | C98: TRA STANDARD | D98: YEAR BOOK
A99: 40x15.50R20LT | B99: D, F | C99: TRA STANDARD | D99: YEAR BOOK
A100: 40x15.50R22LT | B100: D, E, F | C100: TRA STANDARD | D100: YEAR BOOK
A101: 40x15.50R24LT | B101: E, F | C101: TRA STANDARD | D101: YEAR BOOK
A102: 40x15.50R26LT | B102: E | C102: TRA STANDARD | D102: YEAR BOOK
A103: 42x13.50R17LT | B103: B, C, D, E, F | C103: TRA STANDARD | D103: YEAR BOOK | E103: LRC added in 2023 YB; LRB added in 2025 YB
A104: 42x13.50R20LT | B104: C, D | C104: TRA STANDARD | D104: YEAR BOOK | E104: LRD added to the 2024 YB
A105: 42x14.50R17LT | B105: C, D | C105: TRA STANDARD | D105: YEAR BOOK | E105: Old 121 LI cap removed and LRD added in 2024 YB
A106: 42x14.50R20LT | B106: C | C106: TRA STANDARD | D106: YEAR BOOK
A107: 42x15.50R20LT | B107: D, E, F | C107: TRA STANDARD | D107: YEAR BOOK
A108: 42x15.50R22LT | B108: C | C108: TRA STANDARD | D108: YEAR BOOK
A109: 42x15.50R24LT | B109: C | C109: TRA STANDARD | D109: YEAR BOOK
A110: 42x15.50R26LT | B110: D | C110: TRA STANDARD | D110: YEAR BOOK
A111: 42x15.50R28LT | B111: E | C111: TRA STANDARD | D111: YEAR BOOK | E111: LRE different loads | R111: 1615 | S111: 3555 | T111: 1705 | U111: 3760 | V111: 1800 | W111: 3970
A112: 44x15.50R28LT | B112: D | C112: TRA STANDARD | D112: YEAR BOOK
A113: 33x11.50R16LT | B113: E | C113: TRA STANDARD | D113: YEAR BOOK | E113: LRE added in 2023 YB
A114: 40x12.50R17LT | B114: C | C114: TRA STANDARD | D114: YEAR BOOK | E114: LRC added in 2023 YB
A115: 40x13.50R18LT | B115: C, F | C115: TRA STANDARD | D115: YEAR BOOK | E115: LRC added in 2023 YB; LRF added to the 2024 YB
A116: 38x11.50R17LT | B116: D, E | C116: TRA STANDARD | D116: YEAR BOOK | E116: LRD added in 2023 YB; LRE added in 2025 YB
A117: 38x11.50R18LT | B117: D, E | C117: TRA STANDARD | D117: YEAR BOOK | E117: LRD added in 2023 YB; LRE added in 2025 YB
A118: 38x11.50R20LT | B118: D | C118: TRA STANDARD | D118: YEAR BOOK | E118: LRD added in 2023 YB
A119: 38x13.50R18LT | B119: E | C119: TRA STANDARD | D119: YEAR BOOK | E119: LRE added in 2023 YB
A120: 44x13.50R20LT | B120: C | C120: TRA STANDARD | D120: YEAR BOOK | E120: LRC added in 2024 YB
A121: 37x12.50R24LT | B121: E, F | C121: TRA STANDARD | D121: YEAR BOOK | E121: LRE and LRF added in 2025 YB
A122: 39x13.50R18LT | B122: C | C122: TRA STANDARD | D122: YEAR BOOK | E122: LRC added in 2025 YB
A123: 35x9.50R17LT | B123: E | C123: TRA STANDARD | D123: YEAR BOOK | E123: LRE added in 2025 YB

Sheet Export General Data (hidden)
A1: SOURCE | B1: ENTRY DATE | C1: TYPE | D1: TSD | E1: CC | F1: UM | G1: SN | H1: AR | I1: DR | J1: MRWIN | K1: DSW | L1: DODTD1 | M1: DODTD2 | N1: DODTD3 | O1: MOW | P1: MOW1 | Q1: MODTD1 | R1: MODTD2 | S1: MODTD3 | T1: MSF | U1: MDS | V1: MFW | W1: TV | X1: APPRIMS

Sheet Export Loads Data (hidden)
A1: SOURCE | B1: ENTRY DATE | C1: TYPE | D1: TSD | E1: CC | F1: SPDRTG | G1: UM | H1: SD | I1: IP | J1: SN | K1: AR | L1: DR | M1: LD | N1: LI | O1: LID
A2: 1 | B2: 2025 | C2: LT | D2: 34x11.50R20LT | E2: R | F2: * | G2: CU | H2: S | I2: 95 | J2: 11.5 | L2: 20 | M2: 3525 | N2: 124 | O2: F
A3: 1 | B3: 2025 | C3: LT | D3: 34x11.50R20LT | E3: R | F3: * | G3: SI | H3: S | I3: 650 | J3: 11.5 | L3: 20 | M3: 1600 | N3: 124 | O3: F
